Workbook

Sheet Cover Page
D1: Picture
N2: Version 2.1 11/11/19
B8: Add photo
N13: Notes:
N14: This template may require adjustments by individual operators to meet specific reporting requirements as defined in the site Permit(s)
B29: Annual Performance Report 2023
B31: Permit PPC/A/1003157/CP01 (As varied)
B33: MVV Environment Baldovie Ltd
B35: Lines 1, 2 and 3
B37: MVV Environment Baldovie Ltd
B39: Year: | C39: 2023
B41: Address: | C41: Forties Rd, DD4 0NS, Dundee
B43: Tel:
B45: Email:
B47: Prepared by: | F47: Position:
B49: Approved by: | F49: Position:
B51: Version: | C51: 1
B53: Issue Date: | C53: 2024-01-31

Sheet Contents
A1: =+'Cover Page'!$B$29 -> Annual Performance Report 2023 | E1: =+'Cover Page'!$B$33 -> MVV Environment Baldovie Ltd
A3: Contents | K3: Notes:
A4: Section | B4: Subject | H4: Page | K4: Section references and Page nos. to be inserted
B5: Facility Information | H5: 3 | K5: Sections and Subjects may require adjustment by individual operators to meet specific reporting requirements as defined in the sites Permit(s)
B6: Operational Summary | H6: 5
B7: Operational Data | H7: 7
B8: Performance Form 1 | H8: 9
B9: Energy Form 1 | H9: 11
B10: Permit Compliance | H10: 12
B11: Improvements | H11: 15
B12: Public Liasion | H12: 16
B13: Residue Quality | H13: 19
B14: Emissions to Water | H14: 20
B15: Emissions to Air (periodically monitored) | H15: 21
B16: Emissions to Air (continuously monitored) | H16: 23
B17: Hydrogen Chloride emissions | H17: 24
B18: Sulphur Dioxdie emsissions | H18: 25
B19: Oxides of Notrigen emissions | H19: 26
B20: Total Organic Carbon emissions | H20: 27
B21: Particulate Matter emissions | H21: 28
B22: Carbon Monoxide emissions | H22: 29
B23: Ammonia emissions | H23: 30
B24: Nitrous Oxide emissions | H24: 31
A26: Version Control
A27: Section | B27: Information | H27: Date
A34: Distribution
A35: Copy | B35: Name, Role | H35: No.
A44: This report is required under the Industrial Emissions Directive’s Article 55(2) requirements on reporting and public information on waste incineration plants and co-incineration plants, which require the operator to produce an annual report on the functioning and monitoring of the plant and make it available to the public.

Sheet Facility Info
A1: =+'Cover Page'!$B$29 -> Annual Performance Report 2023 | E1: =+'Cover Page'!$B$33 -> MVV Environment Baldovie Ltd
A3: Plant Description and Design | K3: Notes:
A5: The MVV Environment Baldovie Ltd (MEB) Energy from Waste (EfW) facility is located on the northeasterly outskirts of Dundee, Scotland. The facility features two bubbling fluidised bed boilers, each with a thermal output of 17 MWth, firing 7.5 tph of waste per unit. The boilers are operated on refuse-derived fuel which is prepared on-site through the treatment of household and industrial waste which is received at the site from the locality, primarily from Dundee and Angus Councils. The steam generated by the boilers is supplied to a condensing steam turbine for the generation of up to 10.5 MWe of electrical power. The power is generated at 11 kV and after supplying power to run the plant, the balance is exported directly to the local Distribution Network Operator. The plant was constructed from 1998 to 2000 and has been in operation since March 2000 with various plant improvements and modifications made since operations commenced. Since the facility was acquired by MVV Umwelt in November 2018, significant investment in replacement and upgraded equipment has been made, resulting in improved reliability and efficiency, together with consistent and sustainable improvement in environmental performance. MVV have constructed a new Combined Heat and Power (CHP) facility using moving grate technology alongside and to the south of the existing fluidised bed plant. This plant has been fully commissioned and is now regulated under full permit conditions from the 1st of January 2022. A consolidated permit PPC/A/1003157/CP01 was issued on the 3rd of December 2023 in line with the changes to the waste incineration BAT conclusions The plant can supply up to 20 tonnes of steam for process use from the steam turbine extraction pass-out. This is in addition to the capability to export 9.9 MWe should the steam pass-out not be used. The operation of both plants is regulated under a common PPC Permit PPC/A/1003157 (As varied) with a permit variation granted on the 23rd of December 2020 to continue the operation of the fluidised bed plant alongside the new moving grate plant for a period of up to ten years. A consolidated permit was issued on the 3rd of December in line with the changes to the waste incineration BAT conclusions. The application of Best Available Techniques (BAT) will continuously be reviewed due to the transition to operating both plants and within the current year, MEB will be required to demonstrate that the requirements of the recent BAT Ref for Incineration of Waste are achievable for both plants. | K5: Include summary of plant design, design capacity, no. of combustion lines, electrical and heat capacity and any other general information that descibes the facility, its location and purpose
A20: Summary of Operational Processes and Procedures
A22: The Lines 1&2 Fluidised Bed Plant comprises the following units: Two bubbling fluidised bed incinerators, for the incineration of non-hazardous waste at temperatures above 850oC, each capable of burning up to 10 tonnes of waste an hour. Waste reception, inspection, preparation, and storage areas, comprising: a tipping hall, shredder;2 hammer mills; a refuse-derived fuel store; waste conveyor system; and metal recovery systems, comprising metal separation and eddy current separation. Boiler water treatment system comprising a cooling tower and associated pipework and heat exchangers. Gas cleaning and conditioning units on each line comprise cyclone separators; carbon and lime injection; an ammonia SNCR system; and a bag filtration plant. An odour abatement unit comprising activated carbon adsorption filters. Residue treatment and storage areas comprise a cyclone ash silo with a capacity of 60m3; a filter ash silo with a capacity of 60m3; and a bed ash handling system. A turbine and electrical generator supply power to the national grid. The line 3 construction project under commissioning was officially handed over on the 19th of January 2022. Full Permit conditions were implemented by SEPA on the 1st of January 2022. The Line 3 Moving Grate EFW CHP plant comprises the following units: The waste reception building comprises a tipping hall with a waste delivery pit of 1,161 m3 capacity, a single waste storage bunker of 4,413m3 capacity, a feed hopper and a quarantine area, all within an enclosed building fitted with a fast-acting roller shutter door and self-closing louvres; A single inclined reciprocating moving air-cooled grate incinerator for the incineration of non-hazardous waste at temperatures above 850°C, comprising a four-pass vertical water tube boiler, capable of incinerating up to 153,216 tonnes per annum, (typically 110,000 tonnes per annum based on a design point throughput of 13.7 t/hr at LCV10.5MJ/kg, and operational availability of 8000 hours); A heat recovery boiler in which heat from the combustion gases is recovered, to generate superheated steam passed to a steam turbine and associated electrical generator, capable of generating up to 8.7MWe for export to the National Grid. Steam is extracted from the turbine and fed into a steam network for export of up to 19.58 MWth to other users; A demineralised water production plant, capable of producing 23m3/hr and comprising ion exchange demineralisation. A cooling system, comprising a carbon steel and aluminium finned Air Cooled Condenser (ACC) and associated pipework; Flue gas cleaning and conditioning systems, comprising: a urea Selective Non-Catalytic Reduction (SNCR) system to control NOx emissions; dry scrubbing by calcium hydroxide (lime) injection for the abatement of acid gases and powdered activated carbon (PAC) injection for the abatement of dioxins/furans, volatile organic compounds (VOCs) and heavy metals; and a bag filtration plant for the removal of particulate matter. The flue gas is discharged to the atmosphere via an induced draft (ID) fan through a 90m stack; Ash residues treatment and storage, comprising incinerator bottom ash (IBA) collection hoppers, conveying system, a water-filled quenching system and storage in a bunker with a capacity of 356m3; Air pollution control residue (APCr) collection hoppers, conveyors and a storage silo, with a capacity of 160m3 and associated tanker discharge valve; Process Water collection systems, comprising a Clean Water collection pit, for the collection of Process Water from the boiler blow-down drain, regeneration and sampling of demineralised water, and return condensate | K22: Include summary of key processes and procedures such as (but not limited to); waste reception, control rooms, grate, bed and bolier, energy & heat generation, cooling systems, residue management, emission controls, health and safety systems, maintenance
Z43: =Z44 -> 0
Z45: =9000*0.13 -> 1170

Sheet Operational Summary
A1: =+'Cover Page'!$B$29 -> Annual Performance Report 2023 | E1: =+'Cover Page'!$B$33 -> MVV Environment Baldovie Ltd
A3: Summary of Plant Operations and Maintenance during the reporting year | K3: Notes:
A5: Boilers 1 and 3 saw an increase in hours of waste combustion during the 2023 period compared to 2022. Line 1 increased by 7.35% and Line 3 had a minimal increase of 0.25% in the hours of waste combustion. Line 2 had a decrease in hours of waste combustion in comparison to 2022 with a decrease of 1.44%. The total power generation saw a minimal decrease compared to 2022 of 0.06%. The power exported decreased in comparison to 2022 by 4%, as the power used on site increased by 16.9% compared to 2022. The power used on site increased although the imported power decreased by 54.25% compared to 2022. The mass of mixed municipal/bulky waste increased by 40.2% in comparison to 2022, this increase led to a decrease in the commercial and industrial waste input by 21.64%. The increase in mixed municipal/bulky waste is a result of new customers. In total, the waste input increased by a small percentage of 3% compared to 2022. Unplanned Downtime: Line 1 & 2: Most of the unplanned downtime was a result of equipment defects, bed agglomerations and tube leaks. Line 3: downtime caused by crane maintenance, Boiler overpressure events, and blockages within the ash handling system. Planned Downtime: The Lines 1 & 2 spring maintenance outage for Lines 1 & 2 started on the 12th of March and ended on the 27th, the following works were completed: Hammermill 1; mill infeed replacement (chain, lammels, and sealings), collecting conveyor belt replaced and containment work. Hammermill 2; MSW infeed conveyor complete replacement. North screw hard facing. Tunnel belt: new E-stop fitted. Inclined belt; new E-stop fitted, NDE bearings and shaft replacement. Line 1 works: new design scalping roller installed, complete new fuel chute installed, cleaning (furnace, superheaters, economisers, FGT), major refractory replacement on the bottom furnace, NDT and pressure parts work, various works on the fuel feed system, FGT bag house repairs. Line 2: cleaning (furnace, superheaters, economisers, FGT), refractory works, NDT and pressure parts work, various works on the fuel feed system, ID fan balance. The Lines 1 & 2 autumn maintenance outage for Line 1&2 started on the 26th of September and finished on the 11th of October, the following works were completed: Hammermill 1: Replaced grates and fixed teeth, Hammermill 2; replace grates, fixed teeth, mill infeed conveyor, force feeder and DE rotor bearing. South screw hard facing and new catenary cable installation. Inclined chain complete replacement, flexowell belt complete replacement, slide belt complete replacement. Line 1 works: Fuel chute repairs, cleaning (furnace, superheaters, economisers, FGT), minor refractory works in the furnace, NDT and pressure parts work, various works on the fuel feed system, various boiler tube replacements following internal NDT, sprinkler system service. Line 2 works: cleaning (furnace, superheaters, economisers, FGT), Major Refractory works in the furnace (complete bottom furnace block replaced), NDT and pressure parts work, various works on the fuel feed system, ID fan-balanced. The Line 3 annual outage started on the 15th of May and was completed on the 1st of June, the following work was completed: Furnace grate works, furnace refractory works, superheater cleaning and repair works, economiser repair works, shower cleaning, soot blower and ball shot cleaning systems serviced, valve services, turbine, and generator inspections, CEMS servicing, service crane busbar replacement, FGT cleaning, inspections, and minor remedial works. | K5: Include summary of key operational and/or mainteanance activity undertaken in the year, such as any major component upgrades and/or replacements
A29: Summary of Residue Handling for the reporting year
A31: As per the Waste Residue Management Plan stipulated in the Permit condition 8.1.1. Compliance is in place with waste carrier licensed specialist contractors that transport all ash residues offsite with the duty of care audits conducted. | K31: Include in here a summary of residue handling regimes and destinations

Sheet Operational Data
A1: =+'Cover Page'!$B$29 -> Annual Performance Report 2023 | E1: =+'Cover Page'!$B$33 -> MVV Environment Baldovie Ltd
A3: Operational Data
A4: Plant Size | B4: 34 | D4: tonnes pa | E4: 54 | F4: MWth | G4: 20 | H4: MWe
A5: No. of combustion lines | B5: 3 | D5: No. of Turbines: | F5: 2
A7: Waste types received | B7: Unit | C7: Q1 | D7: Q2 | E7: Q3 | F7: Q4 | G7: Year Total | H7: %
A8: Household / Local Authority | B8: tonnes | C8: 18500.38 | D8: 27815.09 | E8: 20781.68 | F8: 35360.42 | G8: =SUM(C8:F8) -> 102457.57 | H8: =IF(G8>0,G8/$G$18,"-") -> 0.5452339668
A9: Commercial & Industrial | C9: 29071.92 | D9: 21544.46 | E9: 17484.54 | F9: 17356.38 | G9: =SUM(C9:F9) -> 85457.3 | H9: 0.4547660332
A10: Hazardous | G10: 0 | H10: -
A11: Clinical | G11: 0 | H11: -
A12: Waste wood (biomass) | G12: 0 | H12: -
A13: Refuse derived fuel | G13: 0 | H13: -
A14: Solid recovered fuel | G14: 0 | H14: -
A15: Other [Please specify] | G15: 0 | H15: -
A16: Other [Please specify]
A17: Other [Please specify]
A18: Total waste received | C18: =SUM(C8:C17) -> 47572.3 | D18: =SUM(D8:D17) -> 49359.55 | E18: =SUM(E8:E17) -> 38266.22 | F18: =SUM(F8:F17) -> 52716.8 | G18: =SUM(G8:G17) -> 187914.87 | H18: =IF(G18>0,G18/$G$18,"-") -> 1
A19: Rejected Waste | G19: =SUM(C19:F19) -> 0 | H19: =IF(G19>0,G19/$G$18,"-") -> -
A20: Waste transferred out | G20: =SUM(C20:F20) -> 0 | H20: =IF(G20>0,G20/$G$18,"-") -> -
A22: Energy Useage / Export | B22: Unit | C22: Q1 | D22: Q2 | E22: Q3 | F22: Q4 | G22: Year Total | H22: KWh/te
A23: Power Generated | B23: MWh | C23: 37072 | D23: 35064 | E23: 38874 | F23: 36121 | G23: =SUM(C23:F23) -> 147131 | H23: =IF(G23>0,G23*1000/$G$18,"-") -> 782.9662442
A24: Power Exported | C24: 30944 | D24: 28437 | E24: 32242 | F24: 30167 | G24: =SUM(C24:F24) -> 121790 | H24: =IF(G24>0,G24*1000/$G$18,"-") -> 648.1126267
A25: Power Used on site | C25: 6128 | D25: 6627 | E25: 6633 | F25: 5973 | G25: =SUM(C25:F25) -> 25361 | H25: 134.9600487
A26: Power Imported | C26: 181.0522 | D26: 211.8847 | E26: 61.781 | F26: 158.9044 | G26: =SUM(C26:F26) -> 613.6223 | H26: 3.265427052
A27: Parasitic Load | B27: % | C27: =IF(C23>0,1-C24/(C23+C26),"-") -> 0.1693566521 | D27: =IF(D23>0,1-D24/(D23+D26),"-") -> 0.1938685524 | E27: =IF(E23>0,1-E24/(E23+E26),"-") -> 0.1719184983 | F27: =IF(F23>0,1-F24/(F23+F26),"-") -> 0.1684928475 | G27: =IF(G23>0,1-G24/(G23+G26),"-") -> 0.1756721964
A28: Thermal Energy Produced | B28: GWh | G28: =SUM(C28:F28) -> 0 | H28: -
A29: Thermal Energy Exported | C29: - | D29: - | E29: 0.436095 | F29: 0.398079 | G29: =SUM(C29:F29) -> 0.834174 | H29: 0.004439105857
A30: R1 value | G30: Design / Operational / n/a
A32: Waste Disposal & Recovery | B32: Unit | C32: Q1 | D32: Q2 | E32: Q3 | F32: Q4 | G32: Year Total | H32: % inputs
A33: APC Residues - produced | B33: tonnes | C33: 1515.46 | D33: 1571.4 | E33: 1709.52 | F33: 1668.86 | G33: =SUM(C33:F33) -> 6465.24 | H33: =IF(G33>0,G33/$G$18,"-") -> 0.03440515378
A34: IBA - produced | C34: 8642 | D34: 8871.98 | E34: 10110.46 | F34: 9783.64 | G34: 37408.08 | H34: 0.1990692913
A35: Metals recycling | C35: 381.84 | D35: 559 | E35: 514.24 | F35: 442.71 | G35: 1897.79 | H35: 0.01009920077
A36: Cyclone Ash | C36: 956.62 | D36: 1213.16 | E36: 1181.4 | F36: 1042.44 | G36: 4393.62 | H36: 0.02338090647
A37: Other [Please specify] | C37: 0 | D37: 0 | E37: 0 | F37: 0 | G37: 0 | H37: -
A38: Other [Please specify] | C38: 0 | D38: 0 | E38: 0 | F38: 0 | G38: 0 | H38: -
A40: Raw Material Usage | B40: Unit | C40: Q1 | D40: Q2 | E40: Q3 | F40: Q4 | G40: Year Total | H40: kg or Ltr /te
A41: Mains Water | B41: m3 | C41: 19872 | D41: 24341 | E41: 21051 | F41: 26576 | G41: =SUM(C41:F41) -> 91840 | H41: =IF(G41>0,G41/$G$18,"-") -> 0.4887319455
A42: Other Water | B42: m3 | C42: 41548.75 | D42: 49147.70833 | E42: 45100.625 | F42: 38129.58333 | G42: 173926.6667 | H42: 0.9255609557
A43: Ammonia / Urea | B43: kgs | C43: 126000 | D43: 136000 | E43: 136000 | F43: 114000 | G43: 512000 | H43: 2.724638024
A44: Activated Carbon | B44: kgs | C44: 46000 | D44: 36500 | E44: 36000 | F44: 37000 | G44: 155500 | H44: 0.8275023685
A45: Lime / hydrated lime | B45: kgs | C45: 627000 | D45: 670000 | E45: 751000 | F45: 670000 | G45: 2718000 | H45: 14.46399638
A46: Fuel oil | B46: ltrs | C46: 204451 | D46: 252979 | E46: 121512 | F46: 245344 | G46: 824286 | H46: 4.386486285
A47: Gas | B47: cf | C47: 0 | D47: 0 | E47: 0 | F47: 0 | G47: 0 | H47: =IF(G47>0,G47*1000/$G$18,"-") -> -
A48: Other | C48: 0 | D48: 0 | E48: 0 | F48: 0 | G48: 0 | H48: -
A50: Summary of Hours | B50: Line/Unit | C50: Q1 | D50: Q2 | E50: Q3 | F50: Q4 | G50: Year Total
A51: Hours of waste combustion, total | B51: =1 -> 1 | C51: 1589 | D51: 1965 | E51: 1890 | F51: 1347 | G51: =SUM(C51:F51) -> 6791 | H51: =G51/8760 -> 0.7752283105
A52: Hours of waste combustion, total | B52: 2 | C52: 1706 | D52: 1941 | E52: 1685 | F52: 1690 | G52: 7022 | H52: =G52/8760 -> 0.8015981735
A53: Hours of waste combustion, total | B53: 3 | C53: 2155.83 | D53: 1652 | E53: 2207 | F53: 2164 | G53: 8178.83 | H53: 0.9336563927
A54: Hours of waste combustion, total | B54: 4 | G54: 0 | H54: -
A55: Hours of waste combustion, total | B55: 5 | G55: =SUM(C55:F55) -> 0 | H55: -
A56: Hours of turbine operations, total | B56: 1 | C56: 1938.4 | D56: 2172.4 | E56: 2087.53 | F56: 1938.86 | G56: 8137.19 | H56: 0.928902968
A57: Hours of turbine operations, total | B57: 2 | C57: 2139.15 | D57: 1639.88 | E57: 2208 | F57: 2161.83 | G57: 8148.86 | H57: 0.9302351598
A58: Hours of heat / steam export | C58: 0 | D58: 0 | E58: 0 | F58: 0 | G58: 0 | H58: =IF(B58>0,G57/8760,"n/a") -> n/a
A59: Abnormal Events | B59: qty. | C59: 0 | D59: 0 | E59: 0 | F59: 0 | G59: 0 | H59: =IF(G59>0,"yes","no") -> no
A60: Abnormal operation | B60: hours | D60: 0 | E60: 0 | F60: 0 | G60: 0 | H60: =+(G60)/8760 -> 0
A61: Permit Breaches | B61: qty. | D61: 0 | E61: 0 | F61: 0 | G61: 0 | H61: =IF(G61>0,"yes","no") -> no

Sheet Perf. Form 1
A1: =+'Cover Page'!C39 -> 2023 | B1: Annual Reporting Performance Form 1
A3: =+'Cover Page'!B31 -> Permit PPC/A/1003157/CP01 (As varied) | F3: Operator: | G3: =+'Cover Page'!B37:I37 -> 0
A4: Facility: | B4: =+'Cover Page'!B33:I33 -> MVV Environment Baldovie Ltd | F4: Form: | G4: Performance 1
A6: Reporting Period from: | D6: 2023-01-01 | F6: to: | G6: 2023-12-31
A8: =+A1 -> 2023 | B8: Annual Reporting of Waste Disposal and Recovery
A9: Waste Description | C9: Disposal Route(s) | E9: Disposal Tonnes | G9: Recovery Tonnes | I9: % / tonne of waste incinerated
A10: 1) Hazardous Wastes
A11: APC Residues | C11: Recovered | E11: 0 | G11: ='Operational Data'!G33-E13 -> 3450.06 | I11: =IF((E11+G11)>0,(E11+G11)/'Operational Data'!$G$18, "-") -> 0.0183596966
A12: IBA | I12: =IF((E12+G12)>0,(E12+G12)/'Operational Data'!$G$18, "-") -> -
A13: Filter Ash | C13: Landfilled | E13: =615.68+818.5+977.44+603.56 -> 3015.18 | G13: 0 | I13: =IF((E13+G13)>0,(E13+G13)/'Operational Data'!$G$18, "-") -> 0.01604545718
I14: =IF((E14+G14)>0,(E14+G14)/'Operational Data'!$G$18, "-") -> -
A15: Total Hazardous Waste | E15: =SUM(E11:F14) -> 3015.18 | G15: =SUM(G11:H14) -> 3450.06 | I15: =IF((E15+G15)>0,(E15+G15)/'Operational Data'!$G$18, "-") -> 0.03440515378
A17: 2) Non-Hazardous Wastes
A18: IBA | C18: Recycled | E18: 0 | G18: ='Operational Data'!G34 -> 37408.08 | I18: =IF((E18+G18)>0,(E18+G18)/'Operational Data'!$G$18, "-") -> 0.1990692913
A19: Metals | C19: Recycled | E19: 0 | G19: ='Operational Data'!G35 -> 1897.79 | I19: =IF((E19+G19)>0,(E19+G19)/'Operational Data'!$G$18, "-") -> 0.01009920077
A20: Process Water | I20: =IF((E20+G20)>0,(E20+G20)/'Operational Data'!$G$18, "-") -> -
A21: Cyclone Ash | C21: Landfilled | E21: ='Operational Data'!G36 -> 4393.62 | G21: 0 | I21: =IF((E21+G21)>0,(E21+G21)/'Operational Data'!$G$18, "-") -> 0.02338090647
I22: =IF((E22+G22)>0,(E22+G22)/'Operational Data'!$G$18, "-") -> -
I23: =IF((E23+G23)>0,(E23+G23)/'Operational Data'!$G$18, "-") -> -
I24: =IF((E24+G24)>0,(E24+G24)/'Operational Data'!$G$18, "-") -> -
A25: Total Non-Hazardous Waste | E25: =SUM(E18:F24) -> 4393.62 | G25: =SUM(G18:H24) -> 39305.87 | I25: =IF((E25+G25)>0,(E25+G25)/'Operational Data'!$G$18, "-") -> 0.2325493986
A26: TOTAL WASTE | E26: =+E25+E15 -> 7408.8 | G26: =+G25+G15 -> 42755.93 | I26: =IF((E26+G26)>0,(E26+G26)/'Operational Data'!$G$18, "-") -> 0.2669545523
A28: Operator’s comments :
A29: APCr is recovered by a specialist contractor, licensed to receive special wastes as per our waste residue management plan. Effluent water is monitored by Scottish Water under trade effluent consent. Each plants are separately consented. There were no breaches of consent conditions for either plant, further details can be found in the Water section.
A33: =+A1 -> 2023 | B33: Annual Reporting of Water and Other Raw Material Usage
A34: Raw Material | E34: Usage | G34: Unit | H34: Specific Useage | J34: Unit
A35: Mains Water | E35: =+'Operational Data'!G41 -> 91840 | G35: m3 | H35: =IF(E35>0,E35/'Operational Data'!$G$18,"-") -> 0.4887319455 | J35: m3/te
A36: Total Water | E36: =+'Operational Data'!G42+'Operational Data'!G41 -> 265766.6667 | G36: m3 | H36: =IF(E36>0,E36/'Operational Data'!$G$18,"-") -> 1.414292901 | J36: m3/te
A37: Urea / Ammonia | E37: =+'Operational Data'!G43 -> 512000 | G37: kg | H37: =IF(E37>0,E37/'Operational Data'!$G$18,"-") -> 2.724638024 | J37: kg/te
A38: Activated Carbon | E38: =+'Operational Data'!G44 -> 155500 | G38: kg | H38: =IF(E38>0,E38/'Operational Data'!$G$18,"-") -> 0.8275023685 | J38: kg/te
A39: Lime / hydrated lime / Sodium Bicarb. | E39: =+'Operational Data'!G45 -> 2718000 | G39: kg | H39: =IF(E39>0,E39/'Operational Data'!$G$18,"-") -> 14.46399638 | J39: kg/te
A41: Operator’s comments :
A45: =+A33 -> 2023 | B45: Annual Reporting of other performance indicators
A46: Parameter | C46: Results by Line
C47: A1 | D47: A2 | E47: A3 | F47: A4 | G47: A5 | I47: Turbine 1 | J47: Turbine 2
A48: Operating hours for the year, hours | C48: 6791 | D48: 7022 | E48: 8179 | I48: 8137 | J48: 8149
A49: Number of periods of abnormal operation, qty. | C49: - | D49: - | E49: - | I49: - | J49: -
A50: Cumulative hours of abnormal operation for this year, hours | C50: - | D50: - | E50: - | I50: - | J50: -
A52: Operator’s comments :
A53: Line 1&2 availability was slighty below forecasted levels. Line 3 availability was above forecasted values.
A56: Signed: | G56: Date:

Sheet Energy Form 1
A1: =+'Cover Page'!C39 -> 2023 | B1: Annual Reporting of Energy Usage/Export
A3: =+'Cover Page'!B31 -> Permit PPC/A/1003157/CP01 (As varied) | F3: Operator: | G3: =+'Cover Page'!B37:I37 -> 0
A5: Facility: | B5: =+'Cover Page'!B33:I33 -> MVV Environment Baldovie Ltd | F5: Form: | G5: Energy 1
A7: Reporting Period from: | D7: =+'[1]Perf. Form 1 (2)'!D6:E6 -> 2023-01-01 | F7: to: | G7: =+'[1]Perf. Form 1 (2)'!G6:H6 -> 2023-12-31
A9: Energy Source | D9: Energy Usage | F9: Unit | G9: Specific Useage (KWh/tonne incinerated
A10: Electricity Produced | D10: =+'Operational Data'!G23 -> 147131 | F10: MWh | G10: =+'Operational Data'!H23 -> 782.9662442
A11: Electricity Imported | D11: =+'Operational Data'!G26 -> 613.6223 | F11: MWh | G11: =+'Operational Data'!H26 -> 3.265427052
A12: Electricity Exported | D12: =+'Operational Data'!G24 -> 121790 | F12: MWh | G12: =+'Operational Data'!H24 -> 648.1126267
A13: Gas Oil | D13: 824286 | F13: tonnes
A14: Steam/hot water exported | D14: =+'Operational Data'!G29 -> 0.834174 | F14: GWh | G14: =+'Operational Data'!H29 -> 0.004439105857
A18: Operator’s comments :
A19: Energy generation is in line with forecasted values. Turbine perfomance is satisfactory. Boiler gas oil use is as forecast for 2023 and in line with expected performance.
A29: Signed: | G29: Date:

Sheet Permit Compliance
A1: =+'Cover Page'!$B$29 -> Annual Performance Report 2023 | E1: =+'Cover Page'!$B$33 -> MVV Environment Baldovie Ltd
A3: Summary of Permit Compliance
A5: Compliance with permit limits for continuously monitored pollutants
A7: The plant met its emission limits as shown in the table below:
A8: Substance | C8: Percentage time compliant during operation - A1
C9: Half-hourly limit | F9: Daily limit
A10: Particulates | C10: 0.9996 | F10: 1
A11: Oxides of nitrogen | C11: 0.9762 | F11: 1
A12: Sulphur dioxide | C12: 1 | F12: 1
A13: Carbon monoxide | C13: 99.73% (95% of 10-min averages) | F13: 0.9863
A14: Total organic carbon | C14: 0.9974 | F14: 0.9973
A15: Hydrogen chloride | C15: 0.994 | F15: 1
A16: Hydrogen fluoride | C16: 1 | F16: 1
A17: Nitrous Oxide | C17: 1 | F17: 1
A18: Ammonia | C18: 1 | F18: 1
A20: Substance | C20: Percentage time compliant during operation - A2
C21: Half-hourly limit | F21: Daily limit
A22: Particulates | C22: 0.9997 | F22: 1
A23: Oxides of nitrogen | C23: 0.9713 | F23: 1
A24: Sulphur dioxide | C24: 0.9995 | F24: 1
A25: Carbon monoxide | C25: 100% (95% of 10-min averages) | F25: 0.9863
A26: Total organic carbon | C26: 0.9995 | F26: 1
A27: Hydrogen chloride | C27: 0.9891 | F27: 0.9973
A28: Hydrogen fluoride | C28: 1 | F28: 1
A29: Nitrous Oxide | C29: 1 | F29: 1
A30: Ammonia | C30: 1 | F30: 0.9973
A32: Substance | C32: Percentage time compliant during operation - A3
C33: Half-hourly limit | F33: Daily limit
A34: Particulates | C34: 0.9995 | F34: 1
A35: Oxides of nitrogen | C35: 0.9854 | F35: 1
A36: Sulphur dioxide | C36: 0.9986 | F36: 0.9945
A37: Carbon monoxide | C37: 98.90% (95% of 10-min averages) | F37: 0.9781
A38: Total organic carbon | C38: 0.9991 | F38: 0.9973
A39: Hydrogen chloride | C39: 0.9999 | F39: 1
A40: Hydrogen fluoride | C40: 1 | F40: 1
A41: Nitrous Oxide | C41: 1 | F41: 1
A42: Ammonia | C42: 1 | F42: 1

Sheet Permit Compliance (2)
A1: =+'Cover Page'!$B$29 -> Annual Performance Report 2023 | E1: =+'Cover Page'!$B$33 -> MVV Environment Baldovie Ltd
A3: Summary of Permit Compliance
A5: Summary of any notifications or non-compliances under the permit
A6: Date | B6: Summary of notification or non-compliance [including Line/Reference] | E6: Reason | H6: Measures taken to prevent reoccurrence
A7: 2023-01-26 | B7: Dioxin and Furan Periodic Monitoring - Line 1 Non-Compliance with ELV identified by SEPA-authorised monitoring regime. Retesting carried out. | E7: Exceedance of Dioxin and Furan periodic monitoring ELV limit, Powdered Activated Carbon Specification assessed as non-compliant | H7: An investigation was conducted to establish the root cause identified and reported to SEPA.
A8: 2023-02-02 | B8: Daily average exceedance of CO and an exceedance of the 95th%ile 10-minute average on Boiler 3 | E8: Suspected orphaned waste cylinder explosion causing an overpressure condition | H8: Liaison with partner councils on the importance of effective waste cylinder segregation.
A9: 2023-02-02 | B9: Minor Fire where SFRS onsite - Lines 1&2 | E9: RDF store | H9: Additional controls implemented and liaison with the SFRS
A10: 2023-02-08 | B10: Daily average exceedance of CO & TOC on Boiler 3 | E10: Suspected orphaned waste cylinder explosion causing an overpressure condition | H10: Liaison with partner councils on the importance of effective waste cylinder segregation
A11: 2023-02-14 | B11: Daily average exceedance of NH3 on Boiler 2 | E11: Start-up | H11: Review of start-up procedures
A12: 2023-02-15 | B12: Minor Fire where SFRS onsite - Lines 1&2 | E12: RDF store | H12: Additional controls implemented and liaison with the SFRS
A13: 2023-02-23 | B13: 95th%ile CO 10 minute average breach on Boiler 1 | E13: Waste to oil transitions and inconsistant fuel feed | H13: The fuel feed system was cleaned and inspected
A14: 2023-03-03 | B14: Daily average exceedance of CO on Boiler 2 | E14: Shutdown | H14: The fuel feed system was cleaned and inspected
A15: 2023-03-07 | B15: Minor Fire where SFRS onsite - Lines 1&2 | E15: RDF store | H15: Additional controls implemented and liaison with the SFRS
A16: 2023-03-07 | B16: Daily average exceedance of CO on Boiler 1 | E16: Shutdown | H16: The fuel feed system was cleaned and inspected and maintenance was complete
A17: 2023-03-20 | B17: Daily average exceedance of CO on Boiler 2 | E17: Start-up | H17: The fuel feed system was cleaned and inspected and maintenance was complete
A18: 2023-04-07 | B18: Daily average exceedance of CO on Boiler 2 | E18: Start-up | H18: The fuel feed system was cleaned and inspected and maintenance was complete
A19: 2023-04-10 | B19: Minor Fire where SFRS onsite - Lines 1&2 | E19: RDF store | H19: Additional controls implemented and liaison with the SFRS
A20: 2023-04-19 | B20: Daily average exceedance of CO on Boiler 1 | E20: Inconsistent fuel feed due to waste quality | H20: The fuel feed system was cleaned and inspected
A21: 2023-04-28 | B21: Daily average exceedance of CO on Boiler 1 | E21: Start-up | H21: Review of start-up procedures
A22: 2023-04-30 | B22: Daily average exceedance of HCl on Boiler 1 | E22: Shutdown | H22: Incident investigated but root cause was unidentified
A23: 2023-05-04 | B23: Minor Fire where SFRS onsite - Lines 1&2 | E23: RDF store | H23: Additional controls implemented and liaison with the SFRS
A24: 2023-05-30 | B24: Daily average exceedance of CO, SO2, and an exceedance of the 95th%ile 10-minute average on Boiler 3 | E24: Start-up | H24: Review of start-up procedures
A25: 2023-05-31 | B25: Daily average exceedance of CO and an exceedance of the 95th%ile 10-minute average on Boiler 3 | E25: Start-up | H25: Review of start-up procedures
A26: 2023-06-01 | B26: Daily average exceedance of CO, SO2, and an exceedance of the 95th%ile 10-minute average on Boiler 3 | E26: Start-up | H26: Review of start-up procedures
A27: 2023-06-06 | B27: Daily average exceedance of CO on Boiler 3 | E27: Start-up | H27: Review of start-up procedures
A28: 2023-06-18 | B28: Daily average exceedance of CO on Boiler 3 | E28: Suspected orphaned waste cylinder explosion causing an overpressure | H28: Liaison with partner councils on the importance of effective waste cylinder segregation
A29: 2023-07-05 | B29: Daily average exceedance of CO on Boiler 2 | E29: Shutdown | H29: Liaison with partner councils on the importance of effective waste cylinder segregation
A30: 2023-08-23 | B30: Daily average exceedance of CO on Boiler 3 | E30: Suspected orphaned waste cylinder explosion causing an overpressure | H30: Liaison with partner councils on the importance of effective waste cylinder segregation
A31: 2023-09-07 | B31: Daily average exceedance of CO on Boiler 2 | E31: Start-up | H31: Review start-up procedures
A32: 2023-10-11 | B32: Daily average exceedance of CO on Boiler 1 | E32: Start-up | H32: Review start-up procedures
A33: 2023-11-01 | B33: Dioxin and Furan Periodic Monitoring - Line 1 Non-Compliance with ELV | E33: Exceedance of Dioxin and Furan periodic monitoring ELV limit | H33: Investigation ongoing
A34: 2023-11-27 | B34: Daily average exceedance of CO on Boiler 1 | E34: Start-up | H34: Review start-up procedures
A35: 2023-12-13 | B35: Daily average exceedance of TOC on Boiler 1 | E35: Shutdown | H35: Maintenance carried out accordingly
A37: Summary of any complaints received and actions to taken to resolve them.
A38: Date | B38: Summary of complaint [including Line/Reference] | E38: Reason * | H38: Measures taken to prevent reoccurrence
A39: 2023-09-10 | B39: Odour complaint | E39: Received from . No evidence found | H39: Investigations found no issues to resolve
A40: 2023-11-27 | B40: External IBA haulier dust emissions | E40: failed to cover vehicle with sheeting although informed prior to leaving site, this resulted in the vehicle emitting dust onto a public road and vehicle. | H40: Waste carrier licensed specialist contractors were made aware
A41: 2023-12-08 | B41: Odour complaint | E41: Received from SEPA on the 13th of December due to a complaint . No evidence was found on the day of the complaint during daily site checks. | H41: no issues to resolve
E42: * including whether substantiated by the operator or the EA

Sheet Improvements
A1: =+'Cover Page'!$B$29 -> Annual Performance Report 2023 | E1: =+'Cover Page'!$B$33 -> MVV Environment Baldovie Ltd
A3: Summary of Plant Improvements
A5: Summary of any efficiency improvements that have been completed within the year.
A6: Commissioning of the medium pressure steam export system to feed the MSIP innovation park complex on the adjacent site. This system is capable of supplying up to 5 MWth at 6 bar for the buildings' space heating.
A16: Summary of any permit improvement conditions that have been completed within the year and the resulting environmental benefits.
A17: Investigation and implementation of test programs for trialling compliance with BATc ELVs in advance of the new ELVs being applied in Dec 2023. Compliance was demonstrated with proportional reduction in mass emissions of NOx and HCl
A27: Summary of any changes to the plant or operating techniques which required a variation to the permit and a summary of the resulting environmental impact.
A38: Summary of any other improvements made to the plant or planned to be made and a summary of the resulting environmental benefits.
A39: Several concepts for energy export from all 3 lines are under investigation. Thes include private wire electricity supplies to adjacent facilities, and a detailed Feasibility Study into a District Heating network which would be fed primarily from stem or hot water from the EfW facilities

Sheet Public Liasion
A1: =+'Cover Page'!$B$29 -> Annual Performance Report 2023 | E1: =+'Cover Page'!$B$33 -> MVV Environment Baldovie Ltd
A3: Details of Public & Stakeholder Liasion
A5: Summary of events held during the reporting year.
A6: Date | C6: Description
A7: 17.01.23 | C7: Taycities Coffee Morning
A9: 19.01.23 | C9: Arbroath Careers Convention
A11: 19.01.23 | C11: Harris Careers Convention
A13: 20.01.23 | C13: Rocksolid Site Visit
A15: 23.01.23 | C15: Monifieth HS Visit
A17: 26.01.23 | C17: Good Neighbours Group
A19: 31.01.23 | C19: Sistema and [REDACTED] presentation
A21: 03.02.23 | C21: Lego League
A23: 08.02.23 | C23: Meet the Experts Session
A25: 23.02.23 | C25: Arbroath School Tour
A27: 23.03.23 | C27: PSIV Presentation
A29: 16.01.23 | C29: CV Session - Grove Academy
A31: 10.02.23 | C31: Arbroath HS - Work for Energy Course
A33: 27.02.23 | C33: Dundee College Tour
A35: 03.03.23 | C35: Aberlemno PS - Tour
A37: 09.03.23 | C37: MSIP Demonstrator Event
A39: 30.03.23 | C39: TrashFashion - V&A
A41: 04.04.23 | C41: Family Day
A43: 10.01.23 | C43: Websters HS - Tour
A45: 17.01.23 | C45: Big Noise Celebration - Sponsorship
A47: 21.02.23 | C47: Fintry Primary - STEM Day
A49: 06.04.23 | C49: Scottish Gov Tour
A51: 27.04.23 | C51: DYW Careers Fair
A53: 27.04.23 | C53: Abroath School - ASN Tour
A55: 28.04.23 | C55: Eastern Primary - Trash Fashion Presentation
A57: 28.04.23 | C57: Gleblands Primary - Trash Fashion Presentation
A59: 05.05.23 | C59: Fintry Primary - Trash Fashion Presentation
A61: 16.05.23 | C61: Grove Academy - EFW Presentation
A63: 22.05.23 | C63: Climate Generation Workshop
A65: 31.05.23 | C65: Forthill Primary - Trash Fashion Presentation
A67: 01.06.23 | C67: Gleblands STEM Day
A69: 05.06.23 | C69: St Mary's STEM Day
A71: 20.06.23 | C71: HELM - EFW Talk
A73: 07.06.23 | C73: Summer Open Day
A75: 19.06.23 | C75: EMBEDD Programme Visit
A77: 30.09.23 | C77: Climate Week Event
A79: 01.11.23 | C79: Craigie High Tour
A81: 06.11.23 | C81: Grove Academy Careers
A83: 09.11.23 | C83: St Marys EFW Session
A85: 16.11.23 | C85: Carnoustie Careers Convention
A87: 21.11.23 | C87: The Circle's Social Impact Report Hybrid Event
A89: 22.11.23 | C89: MVV Kirkton High School
A91: 23.11.23 | C91: TSI Event - Discovery Point
A93: 27.11.23 | C93: MVV Tour with Dundee College - Engineering Dept
A95: 29.11.23 | C95: MSIP STEM Expo 2023
A97: 30.11.23 | C97: Council MVV Visit
A99: 06.12.23 | C99: Arbroath Academy - Engineering Day
A101: 08.12.23 | C101: MVV Tour - Physics - Arbroath High School
A103: 12.12.23 | C103: Craigie High School L&D - STEM
A106: List of events planned for next year
A107: Date | C107: Description
A108: 17.01.23 | C108: Taycities Coffee Morning
A110: 19.01.23 | C110: Arbroath Careers Convention
A112: 19.01.23 | C112: Harris Careers Convention
A114: 20.01.23 | C114: Rocksolid Site Visit
A116: 23.01.23 | C116: Monifieth HS Visit
A118: 26.01.23 | C118: Good Neighbours Group
A120: 31.01.23 | C120: Sistema and [REDACTED] presentation
A122: 03.02.23 | C122: Lego League
A124: 08.02.23 | C124: Meet the Experts Session
A126: 23.02.23 | C126: Arbroath School Tour
A128: 23.03.23 | C128: PSIV Presentation
A133: If you wish to be involved in the public liasion programme, please contact _________________

Sheet Residue Quality
A1: =+'Cover Page'!$B$29 -> Annual Performance Report 2023 | E1: =+'Cover Page'!$B$33 -> MVV Environment Baldovie Ltd
A3: Residue Quality Monitoring Requirements
A5: Summary of monitoring undertaken and compliance
A6: Quarterly sampling of Line 1 and 2 IBA following the WM3 core hazard properties assessment (HP7/7/8/14) including annual full WM3 hazard assessment as per Permit condition 8.1.4.
A8: The third phase of the ESA protocol of monthly sampling was completed in June 2023, after identifying the low variability in key parameters and having no exceedances the decision was made based on the ESA protocol and agreement with SEPA to reduce the frequency to quarterly IBA sampling as per table 8.1 of the PPC permit.
A13: Commentary on any specific events
A14: Date & Event | C14: Description
A15: 2023-06-23 | C15: 3rd stage of ESA accelerated sampling protocol was completed as part of the commissioning process for line 3.
A27: Residue Quality Monitoring Results
A28: Parameter (unit) | C28: Limit | D28: Normal Operation
D29: Bottom ash | F29: APC Residues
A30: Loss on Ignition (%) | C30: <5% | D30: 1.29
A31: ToC (%) | C31: <3% | D31: 0.4
A32: No. of Assessments Undertaken | C32: --- | D32: 12 | F32: 8
A33: No. of Hazardous Assessments | C33: --- | D33: 0
A35: Comments :

Sheet Water
A1: =+'Cover Page'!$B$29 -> Annual Performance Report 2023 | E1: =+'Cover Page'!$B$33 -> MVV Environment Baldovie Ltd
A3: Emissions to Water
A5: Summary of monitoring undertaken and compliance
A6: The MG plant is designed for zero emissions to water with process wastes being recycled and re-used within the plant. However, any surplus waste water arising is fed to the sewer and is monitored by Scottish Water under a Trade Effluent Consent. Trade effluent is monitored for pH, Flow and Temperature to comply with the Water Trade Effluent Consent Registration Number 3341A/3 for Lines 1 and 2 Plant and Consent Registration Number 80296A/01/C for Line 3 Plant, Daily visual checks are made on the drainage systems. Water is extracted from the Dighty Burn through a water abstraction licence CAR/1004581. The actual annual abstraction volume is reported in the operational data section.
A8: The FB plant uses considerable volumes of water to meet the requirements of the surface condenser and wet cooling tower for evaporation and blowdown.
A10: The discharge rate of Trade Effluent from both plants is metered
A13: Commentary on any specific events
A14: Date & Event | C14: Description
A22: Emissions to Water / Sewer
A23: Parameter | D23: Monitoring Frequency | G23: Limit | H23: Target | I23: Max. | J23: Average

Sheet Air (periodic)
A1: =+'Cover Page'!$B$29 -> Annual Performance Report 2023 | E1: =+'Cover Page'!$B$33 -> MVV Environment Baldovie Ltd
A3: Emissions to Air (periodically monitored)
A5: Summary of monitoring undertaken, standards used and compliance | M5: Notes:
A6: Biannual testing of Lines 1 and 2 as per Permit condition 6.4 per the requirements of BS EN ISO/IEC 17025 Line 1: First half: 17th May – 22nd May. Second half: 16th October - 1st November Line 2: First half: 18th May – 25th May. Second half: 16th October - 27th October Line 3: First half: 13th - 17th March. Second half: 24th November – 1st December Quarterly olfactory sampling on lines 1+2 was conducted by a specialised contractor in line with the site permit condition to implement and maintain an Odour Management Plan (OMP). All results submitted to SEPA with the 2023 Quarterly reports. The olfactory sampling systems test on line 3 was conducted by a specialised contractor in line with the site permit condition to implement and maintain an Odour Management Plan (OMP) | M6: Template may require adjustment for any bespoke monitoring requirements of permit.
A9: Results of emissions to air that are periodically monitored
A10: Substance | C10: Ref. Period | D10: Emission Limit Value | F10: Average | M10: User to add additional tables as necessary, depending on whether quarterly or bi-annual reporting is required for the compliance year
F11: A1 | G11: A2 | H11: A3 | I11: A4 | J11: A5
A12: Hydrogen fluoride | C12: 1 hr | D12: 2 mg/m3 | F12: 0.065 | G12: 0.0635 | H12: 0.0485
A13: Cd and Th and their compounds | C13: 6-8hrs | D13: 0.05 mg/m3 | F13: 0.00115 | G13: 0.0012 | H13: 0.0008
A14: Hg and its compounds | C14: 6-8hrs | D14: 0.05 mg/m3 | F14: 0.00155 | G14: 0.0022 | H14: 0.00116
A15: Sb, As, Pb, Cr, Co, Cu, Mn, Ni, V and their compounds | C15: 6-8hrs | D15: 0.5 mg/m3 | F15: 0.068 | G15: 0.026 | H15: 0.204
A16: Dioxins & Furans (I-TEQ) | C16: 6-8hrs | D16: 0.1 ng/m3 | F16: 0.222 | G16: 0.0082 | H16: 0.0082
A17: PCBs (WHO-TEQ Humans / Mammals) | C17: 6-8hrs | D17: None set ng/m3 | F17: 0.0028 | G17: 0.0013 | H17: 0.003245
A18: PCBs (WHO-TEQ Fish) | C18: 6-8hrs | D18: None set ng/m3 | F18: 0.00014 | G18: 6.4e-05 | H18: 0.00505455
A19: PCBs (WHO-TEQ Birds) | C19: 6-8hrs | D19: None set ng/m3 | F19: 0.0072 | G19: 0.0052 | H19: 0.00049
A20: Dioxins & Furans (WHO-TEQ Humans / Mammals) | C20: 6-8hrs | D20: None set ng/m3 | F20: 0.1924166667 | G20: 0.0098 | H20: 0.0083
A21: Dioxins & Furans (WHO-TEQ Fish) | C21: 6-8hrs | D21: None set ng/m3 | F21: 0.2409666667 | G21: 0.0105 | H21: 0.0086
A22: Dioxins & Furans (WHO-TEQ Birds) | C22: 6-8hrs | D22: None set ng/m3 | F22: 0.4315 | G22: 0.0145 | H22: 0.01405
A23: Anthanthrene | C23: 6-8hrs | D23: None set µg/m3 | F23: 0.0115 | G23: 0.0095 | H23: 0.0069
A24: Benzo(a)anthracene | C24: 6-8hrs | D24: None set µg/m3 | F24: 0.024 | G24: 0.0095 | H24: 0.014
A25: Benzo(a)pyrene | C25: 6-8hrs | D25: None set µg/m3 | F25: 0.017 | G25: 0.0095 | H25: 0.01
A26: Benzo(b)fluoranthene | C26: 6-8hrs | D26: None set µg/m3 | F26: 0.226 | G26: 0.0345 | H26: 0.0412
A27: Benzo(b)naptho(2,1-d) thiophene | C27: 6-8hrs | D27: None set µg/m3 | F27: 0.0115 | G27: 0.0095 | H27: 0.0069
A28: Benzo(c)phenanthrene | C28: 6-8hrs | D28: None set µg/m3 | F28: 0.0125 | G28: 0.0095 | H28: 0.0081
A29: Benzo(ghi)perylene | C29: 6-8hrs | D29: None set µg/m3 | F29: 0.032 | G29: 0.011 | H29: 0.018
A30: Benzo(k)fluoranthene | C30: 6-8hrs | D30: None set µg/m3 | F30: 0.066 | G30: 0.012 | H30: 0.011
A31: Cholanthrene | C31: 6-8hrs | D31: None set µg/m3 | F31: 0.0115 | G31: 0.0095 | H31: 0.0069
A32: Chrysene | C32: 6-8hrs | D32: None set µg/m3 | F32: 0.0965 | G32: 0.016 | H32: 0.0178
A33: Cyclopenta(cd)pyrene | C33: 6-8hrs | D33: None set µg/m3 | F33: 0.0115 | G33: 0.012 | H33: 0.016
A34: Dibenzo(ai)pyrene | C34: 6-8hrs | D34: None set µg/m3 | F34: 0.0115 | G34: 0.0095 | H34: 0.0069
A35: Dibenzo(ah)anthracene | C35: 6-8hrs | D35: None set µg/m3 | F35: 0.0215 | G35: 0.0095 | H35: 0.0069
A36: Fluoranthene | C36: 6-8hrs | D36: None set µg/m3 | F36: 0.365 | G36: 0.1455 | H36: 0.0908
A37: Indeno(123-cd) pyrene | C37: 6-8hrs | D37: None set µg/m3 | F37: 0.091 | G37: 0.013 | H37: 0.00775
A38: Naphthalene | C38: 6-8hrs | D38: None set µg/m3 | F38: 5.75 | G38: 7.15 | H38: 0.72375
A39: Comments :
A40: All average results are based on H1 and H2 compliance monitoring only except A1 Dioxin & Furan results which include the SEPA led periodic monitoring and all additional testing. SEPA led periodic monitoring from the 24th of January - 1st of February resulting in a non-compliant result for PCDD/F (I-TEQ). Following this outcome, 4 x additional dioxin and furan tests were conducted excluding the H1 and H2 complaince monitoring. A1 H2 Dioxin & Furan (I-TEQ) results exceeded the ELV, monitoring was conducted on the 1st of November and intermediate reports were received on the 29th of January 2024 and submitted to SEPA on the 29th of January 2024, Final reports are still outstanding. The investigation is ongoing. PCB results are still due for the H2 lines 1&2 compliance regimes, only H1 results are reported. Line 1 AST returned a failure of the Line 1 duty calibration test for HCl and Line 1 redundant calibration test for SO2 and HCl Line 2 AST returned a failure of the Line 2 redundant calibration test for CO, N2O, and oxides of nitrogen (as NO2) Line 3 AST returned a failure of the Line 3 duty calibration test for SO2 As per the relevant Waste Incineration BAT Conclusions changes, the PPC permit variation was issued with an effective date of the 3rd of December 2023. The daily average emission limit values of the relevant substances were changed and the reporting structure to comply with the BATC. The newly applicable ELVs are detailed below: The Hydrogen Fluoride emission limit value was changed from 2 mg/Nm3 to 1 mg/Nm3 on the 3rd of December at 00:00 for all lines. The Cadmium and Thallium emission limit value was changed from 0.05 mg/Nm3 to 0.01 mg/Nm3 on the 3rd of December at 00:00 for all lines. The Mercury and its compounds emission limit value was changed from 0.05 mg/Nm3 to 0.02 mg/Nm3 on the 3rd of December at 00:00 for all lines. The total heavy metal (Sb, As, Pb, Cr, Co, Cu, Mn, Ni and V and their compounds) emission limit value was changed from 0.5 mg/m3 to 0.3 mg/Nm3 on the 3rd of December at 00:00 for all lines. The Dioxin and Furan (I-TEQ) emission limit value was changed from 0.1 ng/Nm3 to 0.06 ng/Nm3 on the 3rd of December at 00:00 for all lines.

Sheet Air (CEMS)
A1: =+'Cover Page'!$B$29 -> Annual Performance Report 2023 | I1: =+'Cover Page'!$B$33 -> MVV Environment Baldovie Ltd
A3: Emissions to Air (continously monitored)
P4: Notes:
A5: Summary of monitoring undertaken, standards used and compliance | P5: Template may require adjustment for any bespoke monitoring requirements of permit
A6: As required by Permit condition 6.2.5, 6.2.8 Continuous Emissions Monitoring System in compliance with QAL3 and the Annual Survaillance Test requirements of BS EN 14181
A11: Results of emissions to air that are continuously monitored
A12: Substance | B12: Reference Period | C12: Emission Limit Value | D12: A1 | F12: A2 | H12: A3 | J12: A4 | L12: A5
D13: Max. | E13: Avg. | F13: Max. | G13: Avg. | H13: Max. | I13: Avg. | J13: Max. | K13: Avg. | L13: Max. | M13: Avg.
A14: Oxides of nitrogen | B14: Daily mean | C14: 200 mg/m3 | D14: =NOx!$O$19 -> 195.6 | E14: =NOx!$N$19 -> 177.7583333 | F14: =OFFSET(NOx!$O$19,15,) -> 192.5 | G14: =OFFSET(NOx!$N$19,15,) -> 180.0583333 | H14: =OFFSET(NOx!$O$19,30,) -> 182.6 | I14: =OFFSET(NOx!$N$19,30,) -> 178.0666667 | J14: - | K14: - | L14: - | M14: -
B15: ½ hourly mean | C15: 400 mg/m3 | D15: =NOx!$M$19 -> 400.3 | E15: =NOx!$L$19 -> 177.9 | F15: =OFFSET(NOx!$M$19,15,) -> 278.7 | G15: =OFFSET(NOx!$L$19,15,) -> 180.25 | H15: =OFFSET(NOx!$M$19,30,) -> 287.4 | I15: =OFFSET(NOx!$L$19,30,) -> 178.15 | J15: - | K15: - | L15: - | M15: -
A16: Particulates | B16: Daily mean | C16: 10 mg/m3 | D16: =Particulates!$O$19 -> 3.4 | E16: =Particulates!$N$19 -> 0.3333333333 | F16: =OFFSET(Particulates!$O$19,15,) -> 2.2 | G16: =OFFSET(Particulates!$N$19,15,) -> 0.3666666667 | H16: =OFFSET(Particulates!$O$19,30,) -> 3.4 | I16: =OFFSET(Particulates!$N$19,30,) -> 0.1583333333 | J16: - | K16: - | L16: - | M16: -
B17: ½ hourly mean | C17: 30 mg/m3 | D17: =Particulates!$M$19 -> 18.2 | E17: =Particulates!$L$19 -> 0.3583333333 | F17: =OFFSET(Particulates!$M$19,15,) -> 8.9 | G17: =OFFSET(Particulates!$L$19,15,) -> 0.3833333333 | H17: =OFFSET(Particulates!$M$19,30,) -> 25.9 | I17: =OFFSET(Particulates!$L$19,30,) -> 0.1916666667 | J17: - | K17: - | L17: - | M17: -
A18: Total Organic Carbon | B18: Daily mean | C18: 10 mg/m3 | D18: =TOC!$O$19 -> 5.3 | E18: =TOC!$N$19 -> 0.7083333333 | F18: =OFFSET(TOC!$O$19,15,) -> 5 | G18: =OFFSET(TOC!$N$19,15,) -> 0.5666666667 | H18: =OFFSET(TOC!$O$19,30,) -> 9.1 | I18: =OFFSET(TOC!$N$19,30,) -> 0.1 | J18: - | K18: - | L18: - | M18: -
B19: ½ hourly mean | C19: 20 mg/m3 | D19: =TOC!$M$19 -> 91 | E19: =TOC!$L$19 -> 0.6916666667 | F19: =OFFSET(TOC!$M$19,15,) -> 61.1 | G19: =OFFSET(TOC!$L$19,15,) -> 0.5583333333 | H19: =OFFSET(TOC!$M$19,30,) -> 333.2 | I19: =OFFSET(TOC!$L$19,30,) -> 0.1083333333 | J19: - | K19: - | L19: - | M19: -
A20: Hydrogen chloride | B20: Daily mean | C20: 10 mg/m3 | D20: =HCl!$O$19 -> 8.9 | E20: =HCl!$N$19 -> 7.041666667 | F20: =OFFSET(HCl!$O$19,15,) -> 11.6 | G20: =OFFSET(HCl!$N$19,15,) -> 7.15 | H20: =OFFSET(HCl!$O$19,30,) -> 4.4 | I20: =OFFSET(HCl!$N$19,30,) -> 2.283333333 | J20: - | K20: - | L20: - | M20: -
B21: ½ hourly mean | C21: 60 mg/m3 | D21: =HCl!$M$19 -> 37.7 | E21: =HCl!$L$19 -> 7.125 | F21: =OFFSET(HCl!$M$19,15,) -> 122 | G21: =OFFSET(HCl!$L$19,15,) -> 7.25 | H21: =OFFSET(HCl!$M$19,30,) -> 15.1 | I21: =OFFSET(HCl!$L$19,30,) -> 2.35 | J21: - | K21: - | L21: - | M21: -
A22: Sulphur dioxide | B22: Daily mean | C22: 50 mg/m3 | D22: ='SO2'!$O$19 -> 7.2 | E22: ='SO2'!$N$19 -> 1.225 | F22: =OFFSET('SO2'!$O$19,15,) -> 14 | G22: =OFFSET('SO2'!$N$19,15,) -> 2.791666667 | H22: =OFFSET('SO2'!$O$19,30,) -> 64.2 | I22: =OFFSET('SO2'!$N$19,30,) -> 8.766666667 | J22: - | K22: - | L22: - | M22: -
B23: ½ hourly mean | C23: 200 mg/m3 | D23: ='SO2'!$M$19 -> 38.5 | E23: ='SO2'!$L$19 -> 1.291666667 | F23: =OFFSET('SO2'!$M$19,15,) -> 55.6 | G23: =OFFSET('SO2'!$L$19,15,) -> 2.841666667 | H23: =OFFSET('SO2'!$M$19,30,) -> 380 | I23: =OFFSET('SO2'!$L$19,30,) -> 8.775 | J23: - | K23: - | L23: - | M23: -
A24: Carbon monoxide | B24: Daily mean | C24: 50 mg/m3 | D24: ='CO 95% 10 min'!$Q$19 -> 60.9 | E24: ='CO 95% 10 min'!$P$19 -> 23.29166667 | F24: =OFFSET('CO 95% 10 min'!$Q$19,15,) -> 318.7 | G24: =OFFSET('CO 95% 10 min'!$P$19,15,) -> 23.50833333 | H24: =OFFSET('CO 95% 10 min'!$Q$19,30,) -> 920.3 | I24: =OFFSET('CO 95% 10 min'!$P$19,30,) -> 16.04166667 | J24: - | K24: - | L24: - | M24: -
B25: 95%ile 10-min avg | C25: 150 mg/m3 | D25: ='CO 95% 10 min'!$O$19 -> 538.9 | E25: ='CO 95% 10 min'!$M$19 -> 127.2583333 | F25: =OFFSET('CO 95% 10 min'!$O$19,15,) -> 1040.5 | G25: =OFFSET('CO 95% 10 min'!$M$19,15,) -> 108.0833333 | H25: =OFFSET('CO 95% 10 min'!$O$19,30,) -> 27956.2 | I25: =OFFSET('CO 95% 10 min'!$M$19,30,) -> 360.0166667 | J25: - | K25: - | L25: - | M25: -
A26: Ammonia | B26: Daily mean | C26: 10 mg/m3 | D26: ='NH3'!$O$19 -> 4.2 | E26: ='NH3'!$N$19 -> 0.4916666667 | F26: =OFFSET('NH3'!$O$19,15,) -> 10.4 | G26: =OFFSET('NH3'!$N$19,15,) -> 0.9833333333 | H26: =OFFSET('NH3'!$O$19,30,) -> 6.1 | I26: =OFFSET('NH3'!$N$19,30,) -> 0.8583333333 | J26: - | K26: - | L26: - | M26: -
A28: Comments :
A29: As per the relevant Waste Incineration BAT Conclusions changes, the PPC permit variation was issued with an effective date of the 3rd of December 2023. The daily average emission limit values of the relevant substances were changed and the reporting structure to comply with the BATC. The newly applicable ELVs are detailed in the relevant sections.

Sheet HCl
A1: =+'Cover Page'!$B$29 -> Annual Performance Report 2023 | E1: =+'Cover Page'!$B$33 -> MVV Environment Baldovie Ltd
A3: Monitoring of Hydrogen Chloride emissions | D3: Whole Installation | J3: =+A3 -> Monitoring of Hydrogen Chloride emissions | N3: Per Combustion Line | Q3: Notes:
Q4: User to add logic to complete Whole installation, Table A5:G18. From the data in Per Combustion Line, Table J6:O79, subject to No. of lines installed
A5: mg/Nm3 | B5: 1/2 Hourly Reference Periods | E5: Daily Reference Periods
A6: =+'Cover Page'!C39 -> 2023 | B6: 1/2 hourly HCl ELV | C6: Monthly 1/2 hourly mean | D6: Highest 1/2 hourly maximum | E6: Daily HCl ELV | F6: Monthly daily mean | G6: Highest daily maximum | J6: =+A6 -> 2023 | K6: mg/Nm3 | L6: Monthly 1/2 hourly mean | M6: Monthly 1/2 hourly maximum | N6: Monthly daily mean | O6: Monthly daily maximum
A7: Jan | B7: 60 | C7: =AVERAGE(L7,L22,L37) -> 5.866666667 | D7: =MAX(M7,M22,M37) -> 12.4 | E7: 10 | F7: =AVERAGE(N7,N22,N37) -> 5.8 | G7: =MAX(O7,O22,O37) -> 8.8 | J7: A1 | K7: Jan | L7: 7.1 | M7: 12.4 | N7: 6.9 | O7: 8.5
A8: Feb | B8: 60 | C8: =AVERAGE(L8,L23,L38) -> 5.9 | D8: =MAX(M8,M23,M38) -> 16 | E8: 10 | F8: =AVERAGE(N8,N23,N38) -> 5.833333333 | G8: 7.6 | K8: Feb | L8: 7.1 | M8: 16 | N8: 7 | O8: 7.4
A9: Mar | B9: 60 | C9: 5.6 | D9: 38.7 | E9: 10 | F9: 5.4 | G9: 8.6 | K9: Mar | L9: 7 | M9: 37.7 | N9: 6.8 | O9: 7.8 | Q9: Whole Installation table A5:G18:
A10: Apr | B10: 60 | C10: 6.166666667 | D10: 23.1 | E10: 10 | F10: 6.2 | G10: 11.6 | K10: Apr | L10: 7.8 | M10: 12.6 | N10: 7.8 | O10: 8.9 | Q10: Mean: for 1/2 hourly and daily periods calculate mean of values across all operational combustion lines for the month
A11: May | B11: 60 | C11: 5.833333333 | D11: 17 | E11: 10 | F11: 5.8 | G11: 8.2 | K11: May | L11: 7.3 | M11: 12.3 | N11: 7.3 | O11: 8.1
A12: Jun | B12: 60 | C12: 5.866666667 | D12: 17.1 | E12: 10 | F12: 5.833333333 | G12: 8.4 | K12: Jun | L12: 7.3 | M12: 9.2 | N12: 7.2 | O12: 8.4
A13: Jul | B13: 60 | C13: 5.8 | D13: 17.9 | E13: 10 | F13: 5.7 | G13: 8.3 | K13: Jul | L13: 7.5 | M13: 17.9 | N13: 7.5 | O13: 8.3 | Q13: Maximum: for 1/2 hourly and daily periods use the highest value across all operational combustion lines for the month
A14: Aug | B14: 60 | C14: 5.3 | D14: 25.6 | E14: 10 | F14: 5.233333333 | G14: 7.8 | K14: Aug | L14: 6.7 | M14: 8.9 | N14: 6.6 | O14: 7.7
A15: Sep | B15: 60 | C15: 5 | D15: 9.9 | E15: 10 | F15: 4.9 | G15: 8.2 | K15: Sep | L15: 7.4 | M15: 9.9 | N15: 7.4 | O15: 8.2
A16: Oct | B16: 60 | C16: 5.333333333 | D16: 122 | E16: 10 | F16: 5.1 | G16: 9.3 | K16: Oct | L16: 6.8 | M16: 12.8 | N16: 6.7 | O16: 7.8
A17: Nov | B17: 60 | C17: 5.366666667 | D17: 16.5 | E17: 10 | F17: 5.3 | G17: 8.2 | K17: Nov | L17: 7 | M17: 16.2 | N17: 6.9 | O17: 7.8
A18: Dec | B18: 60 | C18: 4.866666667 | D18: 47 | E18: 8 | F18: =AVERAGE(N18,N33,N48) -> 4.8 | G18: 7.9 | K18: Dec | L18: 6.5 | M18: 14.2 | N18: 6.4 | O18: 7
K19: Annual | L19: =AVERAGE(L7:L18) -> 7.125 | M19: =MAX(M7:M18) -> 37.7 | N19: =AVERAGE(N7:N18) -> 7.041666667 | O19: =MAX(O7:O18) -> 8.9
J21: =+A6 -> 2023 | K21: mg/Nm3 | L21: Monthly 1/2 hourly mean | M21: Monthly 1/2 hourly maximum | N21: Monthly daily mean | O21: Monthly daily maximum
J22: A2 | K22: Jan | L22: 7.2 | M22: 10.2 | N22: 7.2 | O22: 8.8
K23: Feb | L23: 7.1 | M23: 15.1 | N23: 7.1 | O23: 7.6
K24: Mar | L24: 7.1 | M24: 38.7 | N24: 6.8 | O24: 8.6
K25: Apr | L25: 8 | M25: 23.1 | N25: 8.1 | O25: 11.6
K26: May | L26: 7.6 | M26: 17 | N26: 7.6 | O26: 8.2
K27: Jun | L27: 7.7 | M27: 17.1 | N27: 7.7 | O27: 8.4
K28: Jul | L28: 7.8 | M28: 10.4 | N28: 7.6 | O28: 8.3
K29: Aug | L29: 7.3 | M29: 25.6 | N29: 7.2 | O29: 7.8
K30: Sep | L30: 5.6 | M30: 9.3 | N30: 5.4 | O30: 7.7
K31: Oct | L31: 7.5 | M31: 122 | N31: 7 | O31: 9.3
K32: Nov | L32: 7.6 | M32: 16.5 | N32: 7.6 | O32: 8.2
K33: Dec | L33: 6.5 | M33: 47 | N33: 6.5 | O33: 7.9
K34: Annual | L34: =AVERAGE(L22:L33) -> 7.25 | M34: =MAX(M22:M33) -> 122 | N34: =AVERAGE(N22:N33) -> 7.15 | O34: =MAX(O22:O33) -> 11.6
J36: =+A6 -> 2023 | K36: mg/Nm3 | L36: Monthly 1/2 hourly mean | M36: Monthly 1/2 hourly maximum | N36: Monthly daily mean | O36: Monthly daily maximum
J37: A3 | K37: Jan | L37: 3.3 | M37: 7.4 | N37: 3.3 | O37: 4.3
K38: Feb | L38: 3.5 | M38: 7.7 | N38: 3.4 | O38: 4.1
K39: Mar | L39: 2.7 | M39: 8.6 | N39: 2.6 | O39: 4.4
K40: Apr | L40: 2.7 | M40: 6.9 | N40: 2.7 | O40: 3.9
K41: May | L41: 2.6 | M41: 6.6 | N41: 2.5 | O41: 3.2
K42: Jun | L42: 2.6 | M42: 10.2 | N42: 2.6 | O42: 4.3
K43: Jul | L43: 2.1 | M43: 6.9 | N43: 2 | O43: 2.9
K44: Aug | L44: 1.9 | M44: 15.1 | N44: 1.9 | O44: 2.8
K45: Sep | L45: 2 | M45: 5.3 | N45: 1.9 | O45: 2.7
K46: Oct | L46: 1.7 | M46: 7.2 | N46: 1.6 | O46: 3.2
K47: Nov | L47: 1.5 | M47: 5.1 | N47: 1.4 | O47: 2.6
A48: Comments : | K48: Dec | L48: 1.6 | M48: 4.3 | N48: 1.5 | O48: 2.5
A49: HCl daily average emission limit was changed from 10 mg/m3 to 8 mg/Nm3 on the 3rd of December at 00:00 for all lines. Line 2 had 1 instance of an HCl daily average exceedance. | K49: Annual | L49: =AVERAGE(L37:L48) -> 2.35 | M49: =MAX(M37:M48) -> 15.1 | N49: =AVERAGE(N37:N48) -> 2.283333333 | O49: =MAX(O37:O48) -> 4.4
J51: =+A6 -> 2023 | K51: mg/Nm3 | L51: Monthly 1/2 hourly mean | M51: Monthly 1/2 hourly maximum | N51: Monthly daily mean | O51: Monthly daily maximum
J52: A4 | K52: Jan
K53: Feb
K54: Mar
K55: Apr
K56: May
K57: Jun
K58: Jul
K59: Aug
K60: Sep
K61: Oct
K62: Nov
K63: Dec
K64: Annual | L64: =AVERAGE(L52:L63) ->  | M64: =MAX(M52:M63) -> 0 | N64: =AVERAGE(N52:N63) ->  | O64: =MAX(O52:O63) -> 0
J66: =+A6 -> 2023 | K66: mg/Nm3 | L66: Monthly 1/2 hourly mean | M66: Monthly 1/2 hourly maximum | N66: Monthly daily mean | O66: Monthly daily maximum
J67: A5 | K67: Jan
K68: Feb
K69: Mar
K70: Apr
K71: May
K72: Jun
K73: Jul
K74: Aug
K75: Sep
K76: Oct
K77: Nov
K78: Dec
K79: Annual | L79: =AVERAGE(L67:L78) ->  | M79: =MAX(M67:M78) -> 0 | N79: =AVERAGE(N67:N78) ->  | O79: =MAX(O67:O78) -> 0

Sheet SO2
A1: =+'Cover Page'!$B$29 -> Annual Performance Report 2023 | E1: =+'Cover Page'!$B$33 -> MVV Environment Baldovie Ltd
A3: Monitoring of Sulphur dioxide emissions | D3: Whole Installation | J3: =+A3 -> Monitoring of Sulphur dioxide emissions | N3: Per Combustion Line | Q3: Notes:
Q4: User to add logic to complete Whole installation, Table A5:G18. From the data in Per Combustion Line, Table J6:O79, subject to No. of lines installed
A5: mg/Nm3 | B5: 1/2 Hourly Reference Periods | E5: Daily Reference Periods
A6: =+'Cover Page'!C39 -> 2023 | B6: 1/2 hourly SO2 ELV | C6: Monthly 1/2 hourly mean | D6: Highest 1/2 hourly maximum | E6: Daily SO2 ELV | F6: Monthly daily mean | G6: Highest daily maximum | J6: =+A6 -> 2023 | K6: mg/Nm3 | L6: Monthly 1/2 hourly mean | M6: Monthly 1/2 hourly maximum | N6: Monthly daily mean | O6: Monthly daily maximum
A7: Jan | B7: 200 | C7: =AVERAGE(L7,L22,L37) -> 3.166666667 | D7: =MAX(M7,M22,M37) -> 26.4 | E7: 50 | F7: =AVERAGE(N7,N22,N37) -> 3.133333333 | G7: =MAX(O7,O22,O37) -> 9.5 | J7: A1 | K7: Jan | L7: 0.2 | M7: 4.6 | N7: 0.2 | O7: 1.4
A8: Feb | B8: 200 | C8: =AVERAGE(L8,L23,L38) -> 3.633333333 | D8: =MAX(M8,M23,M38) -> 60.8 | E8: 50 | F8: =AVERAGE(N8,N23,N38) -> 3.566666667 | G8: 10 | K8: Feb | L8: 1 | M8: 15 | N8: 0.9 | O8: 3.5
A9: Mar | B9: 200 | C9: 3.533333333 | D9: 63.8 | E9: 50 | F9: 3.433333333 | G9: 11.2 | K9: Mar | L9: 0.3 | M9: 38.5 | N9: 0.2 | O9: 1.3 | Q9: Whole Installation table A5:G18:
A10: Apr | B10: 200 | C10: 5.2 | D10: 40.4 | E10: 50 | F10: 5.2 | G10: 14 | K10: Apr | L10: 1.8 | M10: 10.9 | N10: 1.6 | O10: 4.7 | Q10: Mean: for 1/2 hourly and daily periods calculate mean of values across all operational combustion lines for the month
A11: May | B11: 200 | C11: 3.866666667 | D11: 150.9 | E11: 50 | F11: 3.7 | G11: 10.5 | K11: May | L11: 0.2 | M11: 3.2 | N11: 0.2 | O11: 1.3
A12: Jun | B12: 200 | C12: 4.8 | D12: 380 | E12: 50 | F12: 5.1 | G12: 64.2 | K12: Jun | L12: 0.3 | M12: 4.5 | N12: 0.3 | O12: 1
A13: Jul | B13: 200 | C13: 3.766666667 | D13: 26.4 | E13: 50 | F13: 3.7 | G13: 8.9 | K13: Jul | L13: 0.9 | M13: 7.1 | N13: 0.9 | O13: 2.8 | Q13: Maximum: for 1/2 hourly and daily periods use the highest value across all operational combustion lines for the month
A14: Aug | B14: 200 | C14: 3.533333333 | D14: 63.1 | E14: 50 | F14: 3.466666667 | G14: 9.3 | K14: Aug | L14: 0.7 | M14: 6.2 | N14: 0.6 | O14: 2.9
A15: Sep | B15: 200 | C15: 3.866666667 | D15: 16.7 | E15: 50 | F15: 3.833333333 | G15: 8.6 | K15: Sep | L15: 2 | M15: 14.5 | N15: 2 | O15: 7.2
A16: Oct | B16: 200 | C16: 5.166666667 | D16: 55.6 | E16: 50 | F16: 5.033333333 | G16: 12.1 | K16: Oct | L16: 2 | M16: 13.2 | N16: 2.1 | O16: 5.9
A17: Nov | B17: 200 | C17: 6.366666667 | D17: 33.3 | E17: 50 | F17: 6.233333333 | G17: 12.8 | K17: Nov | L17: 4.2 | M17: 17.3 | N17: 3.9 | O17: 7.1
A18: Dec | B18: 200 | C18: 4.733333333 | D18: 28.6 | E18: 20 | F18: =AVERAGE(N18,N33,N48) -> 4.733333333 | G18: 11.1 | K18: Dec | L18: 1.9 | M18: 10.1 | N18: 1.8 | O18: 3.2
K19: Annual | L19: =AVERAGE(L7:L18) -> 1.291666667 | M19: =MAX(M7:M18) -> 38.5 | N19: =AVERAGE(N7:N18) -> 1.225 | O19: =MAX(O7:O18) -> 7.2
J21: =+A6 -> 2023 | K21: mg/Nm3 | L21: Monthly 1/2 hourly mean | M21: Monthly 1/2 hourly maximum | N21: Monthly daily mean | O21: Monthly daily maximum
J22: A2 | K22: Jan | L22: 0.6 | M22: 18.5 | N22: 0.6 | O22: 3.5
K23: Feb | L23: 0.9 | M23: 19.8 | N23: 0.8 | O23: 3.6
K24: Mar | L24: 1.5 | M24: 28.9 | N24: 1.4 | O24: 9.6
K25: Apr | L25: 5.2 | M25: 40.4 | N25: 5.5 | O25: 14
K26: May | L26: 2.1 | M26: 7.2 | N26: 2.1 | O26: 3.9
K27: Jun | L27: 2 | M27: 9.9 | N27: 2 | O27: 3.2
K28: Jul | L28: 2.1 | M28: 11.8 | N28: 2 | O28: 3.7
K29: Aug | L29: 1.7 | M29: 6 | N29: 1.7 | O29: 4.1
K30: Sep | L30: 1.6 | M30: 7.4 | N30: 1.5 | O30: 2.9
K31: Oct | L31: 5.3 | M31: 55.6 | N31: 4.8 | O31: 9.7
K32: Nov | L32: 6.9 | M32: 33.3 | N32: 6.8 | O32: 12.8
K33: Dec | L33: 4.2 | M33: 28.6 | N33: 4.3 | O33: 9
K34: Annual | L34: =AVERAGE(L22:L33) -> 2.841666667 | M34: =MAX(M22:M33) -> 55.6 | N34: =AVERAGE(N22:N33) -> 2.791666667 | O34: =MAX(O22:O33) -> 14
J36: =+A6 -> 2023 | K36: mg/Nm3 | L36: Monthly 1/2 hourly mean | M36: Monthly 1/2 hourly maximum | N36: Monthly daily mean | O36: Monthly daily maximum
J37: A3 | K37: Jan | L37: 8.7 | M37: 26.4 | N37: 8.6 | O37: 9.5
K38: Feb | L38: 9 | M38: 60.8 | N38: 9 | O38: 10
K39: Mar | L39: 8.8 | M39: 63.8 | N39: 8.7 | O39: 11.2
K40: Apr | L40: 8.6 | M40: 28.9 | N40: 8.5 | O40: 9.5
K41: May | L41: 9.3 | M41: 150.9 | N41: 8.8 | O41: 10.5
K42: Jun | L42: 12.1 | M42: 380 | N42: 13 | O42: 64.2
K43: Jul | L43: 8.3 | M43: 26.4 | N43: 8.2 | O43: 8.9
K44: Aug | L44: 8.2 | M44: 63.1 | N44: 8.1 | O44: 9.3
K45: Sep | L45: 8 | M45: 16.7 | N45: 8 | O45: 8.6
K46: Oct | L46: 8.2 | M46: 40.8 | N46: 8.2 | O46: 12.1
K47: Nov | L47: 8 | M47: 20.9 | N47: 8 | O47: 8.4
A48: Comments : | K48: Dec | L48: 8.1 | M48: 20.7 | N48: 8.1 | O48: 11.1
A49: SO2 daily average emission limit was changed from 50 mg/m3 to 20 mg/Nm3 on the 3rd of December at 00:00 for all lines. Line 3 had 2 instances of an SO2 daily average exceedances. | K49: Annual | L49: =AVERAGE(L37:L48) -> 8.775 | M49: =MAX(M37:M48) -> 380 | N49: =AVERAGE(N37:N48) -> 8.766666667 | O49: =MAX(O37:O48) -> 64.2
J51: =+A6 -> 2023 | K51: mg/Nm3 | L51: Monthly 1/2 hourly mean | M51: Monthly 1/2 hourly maximum | N51: Monthly daily mean | O51: Monthly daily maximum
J52: A4 | K52: Jan
K53: Feb
K54: Mar
K55: Apr
K56: May
K57: Jun
K58: Jul
K59: Aug
K60: Sep
K61: Oct
K62: Nov
K63: Dec
K64: Annual | L64: =AVERAGE(L52:L63) ->  | M64: =MAX(M52:M63) -> 0 | N64: =AVERAGE(N52:N63) ->  | O64: =MAX(O52:O63) -> 0
J66: =+A6 -> 2023 | K66: mg/Nm3 | L66: Monthly 1/2 hourly mean | M66: Monthly 1/2 hourly maximum | N66: Monthly daily mean | O66: Monthly daily maximum
J67: A5 | K67: Jan
K68: Feb
K69: Mar
K70: Apr
K71: May
K72: Jun
K73: Jul
K74: Aug
K75: Sep
K76: Oct
K77: Nov
K78: Dec
K79: Annual | L79: =AVERAGE(L67:L78) ->  | M79: =MAX(M67:M78) -> 0 | N79: =AVERAGE(N67:N78) ->  | O79: =MAX(O67:O78) -> 0

Sheet NOx
A1: =+'Cover Page'!$B$29 -> Annual Performance Report 2023 | E1: =+'Cover Page'!$B$33 -> MVV Environment Baldovie Ltd
A3: Monitoring of Oxides of Nitrogen emissions | D3: Whole Installation | J3: =+A3 -> Monitoring of Oxides of Nitrogen emissions | N3: Per Combustion Line | Q3: Notes:
Q4: User to add logic to complete Whole installation, Table A5:G18. From the data in Per Combustion Line, Table J6:O79, subject to No. of lines installed
A5: mg/Nm3 | B5: 1/2 Hourly Reference Periods | E5: Daily Reference Periods
A6: =+'Cover Page'!C39 -> 2023 | B6: 1/2 hourly NOx ELV | C6: Monthly 1/2 hourly mean | D6: Highest 1/2 hourly maximum | E6: Daily NOx ELV | F6: Monthly daily mean | G6: Highest daily maximum | J6: =+A6 -> 2023 | K6: mg/Nm3 | L6: Monthly 1/2 hourly mean | M6: Monthly 1/2 hourly maximum | N6: Monthly daily mean | O6: Monthly daily maximum
A7: Jan | B7: 400 | C7: =AVERAGE(L7,L22,L37) -> 177.2333333 | D7: =MAX(M7,M22,M37) -> 312 | E7: 200 | F7: =AVERAGE(N7,N22,N37) -> 177.3 | G7: =MAX(O7,O22,O37) -> 184.3 | J7: A1 | K7: Jan | L7: 175.6 | M7: 312 | N7: 175.9 | O7: 184.3
A8: Feb | B8: 400 | C8: =AVERAGE(L8,L23,L38) -> 182.2 | D8: =MAX(M8,M23,M38) -> 301.8 | E8: 200 | F8: =AVERAGE(N8,N23,N38) -> 182.2333333 | G8: 192.7 | K8: Feb | L8: 182.6 | M8: 301.8 | N8: 182.9 | O8: 192.7
A9: Mar | B9: 400 | C9: 181.6333333 | D9: 400.3 | E9: 200 | F9: 181.4333333 | G9: 187 | K9: Mar | L9: 181.7 | M9: 400.3 | N9: 181.1 | O9: 186.8 | Q9: Whole Installation table A5:G18:
A10: Apr | B10: 400 | C10: 176.4666667 | D10: 266.5 | E10: 200 | F10: 175.9333333 | G10: 181.8 | K10: Apr | L10: 175.3 | M10: 246.1 | N10: 174.1 | O10: 178.3 | Q10: Mean: for 1/2 hourly and daily periods calculate mean of values across all operational combustion lines for the month
A11: May | B11: 400 | C11: 177.3666667 | D11: 259.6 | E11: 200 | F11: 177.4333333 | G11: 184.4 | K11: May | L11: 176 | M11: 189.7 | N11: 176 | O11: 176.7
A12: Jun | B12: 400 | C12: 179.7666667 | D12: 250.5 | E12: 200 | F12: 179.4666667 | G12: 185 | K12: Jun | L12: 176.2 | M12: 250.5 | N12: 176.1 | O12: 180.1
A13: Jul | B13: 400 | C13: 180.2333333 | D13: 253.9 | E13: 200 | F13: 180.1666667 | G13: 189.5 | K13: Jul | L13: 176.1 | M13: 247.5 | N13: 176.1 | O13: 179.6 | Q13: Maximum: for 1/2 hourly and daily periods use the highest value across all operational combustion lines for the month
A14: Aug | B14: 400 | C14: 179.9333333 | D14: 254.8 | E14: 200 | F14: 179.9666667 | G14: 191.7 | K14: Aug | L14: 179.6 | M14: 254.8 | N14: 179.7 | O14: 190.1
A15: Sep | B15: 400 | C15: 181.8666667 | D15: 277.3 | E15: 200 | F15: 181.8 | G15: 187.5 | K15: Sep | L15: 182.2 | M15: 277.3 | N15: 182.2 | O15: 187.5
A16: Oct | B16: 400 | C16: 179.4333333 | D16: 341.3 | E16: 200 | F16: 179 | G16: 195.6 | K16: Oct | L16: 180.1 | M16: 341.3 | N16: 180.5 | O16: 195.6
A17: Nov | B17: 400 | C17: 179.8 | D17: 262.3 | E17: 200 | F17: 179.7666667 | G17: 187.2 | K17: Nov | L17: 179.1 | M17: 262.3 | N17: 179.1 | O17: 187.2
A18: Dec | B18: 400 | C18: 169.2666667 | D18: 325.3 | E18: 180 | F18: =AVERAGE(N18,N33,N48) -> 169.0333333 | G18: 176.8 | K18: Dec | L18: 170.3 | M18: 325.3 | N18: 169.4 | O18: 176.8
K19: Annual | L19: =AVERAGE(L7:L18) -> 177.9 | M19: =MAX(M7:M18) -> 400.3 | N19: =AVERAGE(N7:N18) -> 177.7583333 | O19: =MAX(O7:O18) -> 195.6
J21: =+A6 -> 2023 | K21: mg/Nm3 | L21: Monthly 1/2 hourly mean | M21: Monthly 1/2 hourly maximum | N21: Monthly daily mean | O21: Monthly daily maximum
J22: A2 | K22: Jan | L22: 175.2 | M22: 207.3 | N22: 175.2 | O22: 177.9
K23: Feb | L23: 183.1 | M23: 231.1 | N23: 183 | O23: 192.5
K24: Mar | L24: 183.2 | M24: 278.7 | N24: 183.2 | O24: 187
K25: Apr | L25: 174.2 | M25: 236.6 | N25: 173.8 | O25: 180.3
K26: May | L26: 178.8 | M26: 234 | N26: 178.7 | O26: 184.4
K27: Jun | L27: 183.9 | M27: 220.9 | N27: 183.9 | O27: 185
K28: Jul | L28: 184.1 | M28: 253.9 | N28: 184 | O28: 189.5
K29: Aug | L29: 182.3 | M29: 251.5 | N29: 182.4 | O29: 191.7
K30: Sep | L30: 184 | M30: 211.7 | N30: 183.8 | O30: 185.1
K31: Oct | L31: 182.5 | M31: 211 | N31: 180.9 | O31: 184.4
K32: Nov | L32: 183.1 | M32: 206.8 | N32: 183 | O32: 184.5
K33: Dec | L33: 168.6 | M33: 198.6 | N33: 168.8 | O33: 175.1
K34: Annual | L34: =AVERAGE(L22:L33) -> 180.25 | M34: =MAX(M22:M33) -> 278.7 | N34: =AVERAGE(N22:N33) -> 180.0583333 | O34: =MAX(O22:O33) -> 192.5
J36: =+A6 -> 2023 | K36: mg/Nm3 | L36: Monthly 1/2 hourly mean | M36: Monthly 1/2 hourly maximum | N36: Monthly daily mean | O36: Monthly daily maximum
J37: A3 | K37: Jan | L37: 180.9 | M37: 219.3 | N37: 180.8 | O37: 182.4
K38: Feb | L38: 180.9 | M38: 246.6 | N38: 180.8 | O38: 182.6
K39: Mar | L39: 180 | M39: 220.7 | N39: 180 | O39: 181.4
K40: Apr | L40: 179.9 | M40: 266.5 | N40: 179.9 | O40: 181.8
K41: May | L41: 177.3 | M41: 259.6 | N41: 177.6 | O41: 180.8
K42: Jun | L42: 179.2 | M42: 232.9 | N42: 178.4 | O42: 182.1
K43: Jul | L43: 180.5 | M43: 222.8 | N43: 180.4 | O43: 182.3
K44: Aug | L44: 177.9 | M44: 222.4 | N44: 177.8 | O44: 181.6
K45: Sep | L45: 179.4 | M45: 209.6 | N45: 179.4 | O45: 181.9
K46: Oct | L46: 175.7 | M46: 287.4 | N46: 175.6 | O46: 181.2
K47: Nov | L47: 177.2 | M47: 205 | N47: 177.2 | O47: 181.7
A48: Comments : | K48: Dec | L48: 168.9 | M48: 221.5 | N48: 168.9 | O48: 172.3
A49: NOx daily average emission limit was changed from 200 mg/m3 to 180 mg/Nm3 on the 3rd of December at 00:00 for all lines. | K49: Annual | L49: =AVERAGE(L37:L48) -> 178.15 | M49: =MAX(M37:M48) -> 287.4 | N49: =AVERAGE(N37:N48) -> 178.0666667 | O49: =MAX(O37:O48) -> 182.6
J51: =+A6 -> 2023 | K51: mg/Nm3 | L51: Monthly 1/2 hourly mean | M51: Monthly 1/2 hourly maximum | N51: Monthly daily mean | O51: Monthly daily maximum
J52: A4 | K52: Jan
K53: Feb
K54: Mar
K55: Apr
K56: May
K57: Jun
K58: Jul
K59: Aug
K60: Sep
K61: Oct
K62: Nov
K63: Dec
K64: Annual | L64: =AVERAGE(L52:L63) ->  | M64: =MAX(M52:M63) -> 0 | N64: =AVERAGE(N52:N63) ->  | O64: =MAX(O52:O63) -> 0
J66: =+A6 -> 2023 | K66: mg/Nm3 | L66: Monthly 1/2 hourly mean | M66: Monthly 1/2 hourly maximum | N66: Monthly daily mean | O66: Monthly daily maximum
J67: A5 | K67: Jan
K68: Feb
K69: Mar
K70: Apr
K71: May
K72: Jun
K73: Jul
K74: Aug
K75: Sep
K76: Oct
K77: Nov
K78: Dec
K79: Annual | L79: =AVERAGE(L67:L78) ->  | M79: =MAX(M67:M78) -> 0 | N79: =AVERAGE(N67:N78) ->  | O79: =MAX(O67:O78) -> 0

Sheet TOC
A1: =+'Cover Page'!$B$29 -> Annual Performance Report 2023 | E1: =+'Cover Page'!$B$33 -> MVV Environment Baldovie Ltd
A3: Monitoring of Total organic carbon emissions | D3: Whole Installation | J3: =+A3 -> Monitoring of Total organic carbon emissions | N3: Per Combustion Line | Q3: Notes:
Q4: User to add logic to complete Whole installation, Table A5:G18. From the data in Per Combustion Line, Table J6:O79, subject to No. of lines installed
A5: mg/Nm3 | B5: 1/2 Hourly Reference Periods | E5: Daily Reference Periods
A6: =+'Cover Page'!C39 -> 2023 | B6: 1/2 hourly TOC ELV | C6: Monthly 1/2 hourly mean | D6: Highest 1/2 hourly maximum | E6: Daily TOC ELV | F6: Monthly daily mean | G6: Highest daily maximum | J6: =+A6 -> 2023 | K6: mg/Nm3 | L6: Monthly 1/2 hourly mean | M6: Monthly 1/2 hourly maximum | N6: Monthly daily mean | O6: Monthly daily maximum
A7: Jan | B7: 20 | C7: =AVERAGE(L7,L22,L37) -> 0.4333333333 | D7: =MAX(M7,M22,M37) -> 61.1 | E7: 10 | F7: =AVERAGE(N7,N22,N37) -> 0.4 | G7: =MAX(O7,O22,O37) -> 1.8 | J7: A1 | K7: Jan | L7: 0.6 | M7: 12.7 | N7: 0.6 | O7: 1.2
A8: Feb | B8: 20 | C8: =AVERAGE(L8,L23,L38) -> 0.6333333333 | D8: =MAX(M8,M23,M38) -> 333.2 | E8: 10 | F8: =AVERAGE(N8,N23,N38) -> 0.6333333333 | G8: 9.1 | K8: Feb | L8: 0.7 | M8: 41.8 | N8: 0.7 | O8: 1.4
A9: Mar | B9: 20 | C9: 0.5333333333 | D9: 91 | E9: 10 | F9: 0.5666666667 | G9: 4.2 | K9: Mar | L9: 1 | M9: 91 | N9: 1.1 | O9: 4.2 | Q9: Whole Installation table A5:G18:
A10: Apr | B10: 20 | C10: 0.6666666667 | D10: 12.1 | E10: 10 | F10: 0.6666666667 | G10: 2 | K10: Apr | L10: 0.8 | M10: 12.1 | N10: 0.8 | O10: 2 | Q10: Mean: for 1/2 hourly and daily periods calculate mean of values across all operational combustion lines for the month
A11: May | B11: 20 | C11: 0.7 | D11: 17.6 | E11: 10 | F11: 0.6333333333 | G11: 2.3 | K11: May | L11: 0.8 | M11: 17.6 | N11: 0.7 | O11: 1.4
A12: Jun | B12: 20 | C12: 0.5666666667 | D12: 37.6 | E12: 10 | F12: 0.5666666667 | G12: 7.2 | K12: Jun | L12: 0.8 | M12: 20.7 | N12: 0.7 | O12: 1.8
A13: Jul | B13: 20 | C13: 0.5333333333 | D13: 12.7 | E13: 10 | F13: 0.5333333333 | G13: 1.3 | K13: Jul | L13: 0.9 | M13: 12.5 | N13: 0.9 | O13: 1.3 | Q13: Maximum: for 1/2 hourly and daily periods use the highest value across all operational combustion lines for the month
A14: Aug | B14: 20 | C14: 0.6 | D14: 192.5 | E14: 10 | F14: 0.5666666667 | G14: 4.4 | K14: Aug | L14: 0.9 | M14: 45 | N14: 0.9 | O14: 2.4
A15: Sep | B15: 20 | C15: 0.3 | D15: 16.1 | E15: 10 | F15: 0.3666666667 | G15: 5 | K15: Sep | L15: 0.4 | M15: 16.1 | N15: 0.4 | O15: 1
A16: Oct | B16: 20 | C16: 0.1333333333 | D16: 21 | E16: 10 | F16: 0.1333333333 | G16: 1.9 | K16: Oct | L16: 0.4 | M16: 21 | N16: 0.4 | O16: 1.9
A17: Nov | B17: 20 | C17: 0.2 | D17: 29 | E17: 10 | F17: 0.2 | G17: 1.4 | K17: Nov | L17: 0.6 | M17: 6.7 | N17: 0.6 | O17: 1.4
A18: Dec | B18: 20 | C18: 0.1333333333 | D18: 10.5 | E18: 5 | F18: =AVERAGE(N18,N33,N48) -> 0.2333333333 | G18: 5.3 | K18: Dec | L18: 0.4 | M18: 5.7 | N18: 0.7 | O18: 5.3
K19: Annual | L19: =AVERAGE(L7:L18) -> 0.6916666667 | M19: =MAX(M7:M18) -> 91 | N19: =AVERAGE(N7:N18) -> 0.7083333333 | O19: =MAX(O7:O18) -> 5.3
J21: =+A6 -> 2023 | K21: mg/Nm3 | L21: Monthly 1/2 hourly mean | M21: Monthly 1/2 hourly maximum | N21: Monthly daily mean | O21: Monthly daily maximum
J22: A2 | K22: Jan | L22: 0.7 | M22: 61.1 | N22: 0.6 | O22: 1.8
K23: Feb | L23: 0.6 | M23: 16.3 | N23: 0.6 | O23: 1.2
K24: Mar | L24: 0.6 | M24: 10.4 | N24: 0.6 | O24: 2.3
K25: Apr | L25: 1.2 | M25: 8.4 | N25: 1.2 | O25: 1.9
K26: May | L26: 1.2 | M26: 11.1 | N26: 1.2 | O26: 2.3
K27: Jun | L27: 0.7 | M27: 4.3 | N27: 0.7 | O27: 1.3
K28: Jul | L28: 0.6 | M28: 4.8 | N28: 0.6 | O28: 1.3
K29: Aug | L29: 0.6 | M29: 6.4 | N29: 0.6 | O29: 0.8
K30: Sep | L30: 0.5 | M30: 6.7 | N30: 0.7 | O30: 5
K31: Oct | L31: 0 | M31: 0.9 | N31: 0 | O31: 0.2
K32: Nov | L32: 0 | M32: 13.8 | N32: 0 | O32: 0.3
K33: Dec | L33: 0 | M33: 2.3 | N33: 0 | O33: 0.1
K34: Annual | L34: =AVERAGE(L22:L33) -> 0.5583333333 | M34: =MAX(M22:M33) -> 61.1 | N34: =AVERAGE(N22:N33) -> 0.5666666667 | O34: =MAX(O22:O33) -> 5
J36: =+A6 -> 2023 | K36: mg/Nm3 | L36: Monthly 1/2 hourly mean | M36: Monthly 1/2 hourly maximum | N36: Monthly daily mean | O36: Monthly daily maximum
J37: A3 | K37: Jan | L37: 0 | M37: 0.2 | N37: 0 | O37: 0
K38: Feb | L38: 0.6 | M38: 333.2 | N38: 0.6 | O38: 9.1
K39: Mar | L39: 0 | M39: 1.6 | N39: 0 | O39: 0.1
K40: Apr | L40: 0 | M40: 1 | N40: 0 | O40: 0.4
K41: May | L41: 0.1 | M41: 5.1 | N41: 0 | O41: 0.4
K42: Jun | L42: 0.2 | M42: 37.6 | N42: 0.3 | O42: 7.2
K43: Jul | L43: 0.1 | M43: 12.7 | N43: 0.1 | O43: 0.5
K44: Aug | L44: 0.3 | M44: 192.5 | N44: 0.2 | O44: 4.4
K45: Sep | L45: 0 | M45: 0.8 | N45: 0 | O45: 0.1
K46: Oct | L46: 0 | M46: 6.9 | N46: 0 | O46: 0.2
K47: Nov | L47: 0 | M47: 29 | N47: 0 | O47: 0.6
A48: Comments : | K48: Dec | L48: 0 | M48: 10.5 | N48: 0 | O48: 0.2
A49: TOC daily average emission limit was changed from 10 mg/m3 to 5 mg/Nm3 on the 3rd of December at 00:00 for all lines. Line 1 had 1 instance of a TOC daily average exceedance. Line 3 had 1 instance of a TOC daily average exceedance. | K49: Annual | L49: =AVERAGE(L37:L48) -> 0.1083333333 | M49: =MAX(M37:M48) -> 333.2 | N49: =AVERAGE(N37:N48) -> 0.1 | O49: =MAX(O37:O48) -> 9.1
J51: =+A6 -> 2023 | K51: mg/Nm3 | L51: Monthly 1/2 hourly mean | M51: Monthly 1/2 hourly maximum | N51: Monthly daily mean | O51: Monthly daily maximum
J52: A4 | K52: Jan
K53: Feb
K54: Mar
K55: Apr
K56: May
K57: Jun
K58: Jul
K59: Aug
K60: Sep
K61: Oct
K62: Nov
K63: Dec
K64: Annual | L64: =AVERAGE(L52:L63) ->  | M64: =MAX(M52:M63) -> 0 | N64: =AVERAGE(N52:N63) ->  | O64: =MAX(O52:O63) -> 0
J66: =+A6 -> 2023 | K66: mg/Nm3 | L66: Monthly 1/2 hourly mean | M66: Monthly 1/2 hourly maximum | N66: Monthly daily mean | O66: Monthly daily maximum
J67: A5 | K67: Jan
K68: Feb
K69: Mar
K70: Apr
K71: May
K72: Jun
K73: Jul
K74: Aug
K75: Sep
K76: Oct
K77: Nov
K78: Dec
K79: Annual | L79: =AVERAGE(L67:L78) ->  | M79: =MAX(M67:M78) -> 0 | N79: =AVERAGE(N67:N78) ->  | O79: =MAX(O67:O78) -> 0

Sheet Particulates
A1: =+'Cover Page'!$B$29 -> Annual Performance Report 2023 | E1: =+'Cover Page'!$B$33 -> MVV Environment Baldovie Ltd
A3: Monitoring of Particulate matter emissions | D3: Whole Installation | J3: =+A3 -> Monitoring of Particulate matter emissions | N3: Per Combustion Line | Q3: Notes:
Q4: User to add logic to complete Whole installation, Table A5:G18. From the data in Per Combustion Line, Table J6:O79, subject to No. of lines installed
A5: mg/Nm3 | B5: 1/2 Hourly Reference Periods | E5: Daily Reference Periods
A6: =+'Cover Page'!C39 -> 2023 | B6: 1/2 hourly PM ELV | C6: Monthly 1/2 hourly mean | D6: Highest 1/2 hourly maximum | E6: Daily PM ELV | F6: Monthly daily mean | G6: Highest daily maximum | J6: =+A6 -> 2023 | K6: mg/Nm3 | L6: Monthly 1/2 hourly mean | M6: Monthly 1/2 hourly maximum | N6: Monthly daily mean | O6: Monthly daily maximum
A7: Jan | B7: 30 | C7: =AVERAGE(L7,L22,L37) -> 0.4666666667 | D7: =MAX(M7,M22,M37) -> 18.2 | E7: 10 | F7: =AVERAGE(N7,N22,N37) -> 0.4666666667 | G7: =MAX(O7,O22,O37) -> 2.6 | J7: A1 | K7: Jan | L7: 0.5 | M7: 18.2 | N7: 0.5 | O7: 2.6
A8: Feb | B8: 30 | C8: =AVERAGE(L8,L23,L38) -> 0.4666666667 | D8: =MAX(M8,M23,M38) -> 6.4 | E8: 10 | F8: =AVERAGE(N8,N23,N38) -> 0.4666666667 | G8: 1.5 | K8: Feb | L8: 0.4 | M8: 6.4 | N8: 0.4 | O8: 1.1
A9: Mar | B9: 30 | C9: 0.3666666667 | D9: 8.9 | E9: 10 | F9: 0.4 | G9: 3.4 | K9: Mar | L9: 0.4 | M9: 7.2 | N9: 0.5 | O9: 3.4 | Q9: Whole Installation table A5:G18:
A10: Apr | B10: 30 | C10: 0.2333333333 | D10: 6.7 | E10: 10 | F10: 0.2333333333 | G10: 0.8 | K10: Apr | L10: 0.3 | M10: 6.7 | N10: 0.3 | O10: 0.8 | Q10: Mean: for 1/2 hourly and daily periods calculate mean of values across all operational combustion lines for the month
A11: May | B11: 30 | C11: 0.2333333333 | D11: 1.2 | E11: 10 | F11: 0.2 | G11: 0.6 | K11: May | L11: 0.2 | M11: 0.6 | N11: 0.2 | O11: 0.3
A12: Jun | B12: 30 | C12: 0.3333333333 | D12: 25.9 | E12: 10 | F12: 0.2666666667 | G12: 3.4 | K12: Jun | L12: 0.4 | M12: 3.5 | N12: 0.3 | O12: 0.6
A13: Jul | B13: 30 | C13: 0.2666666667 | D13: 13.3 | E13: 10 | F13: 0.2333333333 | G13: 1.6 | K13: Jul | L13: 0.4 | M13: 13.3 | N13: 0.4 | O13: 1.6 | Q13: Maximum: for 1/2 hourly and daily periods use the highest value across all operational combustion lines for the month
A14: Aug | B14: 30 | C14: 0.2666666667 | D14: 12.8 | E14: 10 | F14: 0.2333333333 | G14: 1.3 | K14: Aug | L14: 0.4 | M14: 6.1 | N14: 0.3 | O14: 0.8
A15: Sep | B15: 30 | C15: 0.2666666667 | D15: 2.1 | E15: 10 | F15: 0.2333333333 | G15: 1.1 | K15: Sep | L15: 0.3 | M15: 2.1 | N15: 0.3 | O15: 0.6
A16: Oct | B16: 30 | C16: 0.2666666667 | D16: 5.2 | E16: 10 | F16: 0.2333333333 | G16: 2.2 | K16: Oct | L16: 0.4 | M16: 2 | N16: 0.3 | O16: 0.9
A17: Nov | B17: 30 | C17: 0.2666666667 | D17: 2.9 | E17: 10 | F17: 0.2333333333 | G17: 0.6 | K17: Nov | L17: 0.3 | M17: 2.9 | N17: 0.3 | O17: 0.6
A18: Dec | B18: 30 | C18: 0.3 | D18: 6.6 | E18: 5 | F18: =AVERAGE(N18,N33,N48) -> 0.2333333333 | G18: 1.1 | K18: Dec | L18: 0.3 | M18: 6.6 | N18: 0.2 | O18: 1.1
K19: Annual | L19: =AVERAGE(L7:L18) -> 0.3583333333 | M19: =MAX(M7:M18) -> 18.2 | N19: =AVERAGE(N7:N18) -> 0.3333333333 | O19: =MAX(O7:O18) -> 3.4
J21: =+A6 -> 2023 | K21: mg/Nm3 | L21: Monthly 1/2 hourly mean | M21: Monthly 1/2 hourly maximum | N21: Monthly daily mean | O21: Monthly daily maximum
J22: A2 | K22: Jan | L22: 0.8 | M22: 5.8 | N22: 0.8 | O22: 2.1
K23: Feb | L23: 0.9 | M23: 2.9 | N23: 0.9 | O23: 1.5
K24: Mar | L24: 0.6 | M24: 8.9 | N24: 0.6 | O24: 1.5
K25: Apr | L25: 0.3 | M25: 1.1 | N25: 0.3 | O25: 0.6
K26: May | L26: 0.3 | M26: 1 | N26: 0.3 | O26: 0.6
K27: Jun | L27: 0.3 | M27: 0.7 | N27: 0.3 | O27: 0.4
K28: Jul | L28: 0.3 | M28: 0.9 | N28: 0.2 | O28: 0.4
K29: Aug | L29: 0.2 | M29: 0.7 | N29: 0.2 | O29: 0.3
K30: Sep | L30: 0.3 | M30: 2.1 | N30: 0.3 | O30: 1.1
K31: Oct | L31: 0.2 | M31: 5.2 | N31: 0.2 | O31: 2.2
K32: Nov | L32: 0.2 | M32: 0.4 | N32: 0.1 | O32: 0.2
K33: Dec | L33: 0.2 | M33: 0.5 | N33: 0.2 | O33: 0.3
K34: Annual | L34: =AVERAGE(L22:L33) -> 0.3833333333 | M34: =MAX(M22:M33) -> 8.9 | N34: =AVERAGE(N22:N33) -> 0.3666666667 | O34: =MAX(O22:O33) -> 2.2
J36: =+A6 -> 2023 | K36: mg/Nm3 | L36: Monthly 1/2 hourly mean | M36: Monthly 1/2 hourly maximum | N36: Monthly daily mean | O36: Monthly daily maximum
J37: A3 | K37: Jan | L37: 0.1 | M37: 1.2 | N37: 0.1 | O37: 0.3
K38: Feb | L38: 0.1 | M38: 1.6 | N38: 0.1 | O38: 0.3
K39: Mar | L39: 0.1 | M39: 2 | N39: 0.1 | O39: 0.3
K40: Apr | L40: 0.1 | M40: 3.2 | N40: 0.1 | O40: 0.4
K41: May | L41: 0.2 | M41: 1.2 | N41: 0.1 | O41: 0.4
K42: Jun | L42: 0.3 | M42: 25.9 | N42: 0.2 | O42: 3.4
K43: Jul | L43: 0.1 | M43: 0.5 | N43: 0.1 | O43: 0.1
K44: Aug | L44: 0.2 | M44: 12.8 | N44: 0.2 | O44: 1.3
K45: Sep | L45: 0.2 | M45: 1 | N45: 0.1 | O45: 0.4
K46: Oct | L46: 0.2 | M46: 3.7 | N46: 0.2 | O46: 0.9
K47: Nov | L47: 0.3 | M47: 0.8 | N47: 0.3 | O47: 0.5
A48: Comments : | K48: Dec | L48: 0.4 | M48: 2 | N48: 0.3 | O48: 0.7
A49: Particulate matter daily average emission limit was changed from 10 mg/m3 to 5 mg/Nm3 on the 3rd of December at 00:00 for all lines. | K49: Annual | L49: =AVERAGE(L37:L48) -> 0.1916666667 | M49: =MAX(M37:M48) -> 25.9 | N49: =AVERAGE(N37:N48) -> 0.1583333333 | O49: =MAX(O37:O48) -> 3.4
J51: =+A6 -> 2023 | K51: mg/Nm3 | L51: Monthly 1/2 hourly mean | M51: Monthly 1/2 hourly maximum | N51: Monthly daily mean | O51: Monthly daily maximum
J52: A4 | K52: Jan
K53: Feb
K54: Mar
K55: Apr
K56: May
K57: Jun
K58: Jul
K59: Aug
K60: Sep
K61: Oct
K62: Nov
K63: Dec
K64: Annual | L64: =AVERAGE(L52:L63) ->  | M64: =MAX(M52:M63) -> 0 | N64: =AVERAGE(N52:N63) ->  | O64: =MAX(O52:O63) -> 0
J66: =+A6 -> 2023 | K66: mg/Nm3 | L66: Monthly 1/2 hourly mean | M66: Monthly 1/2 hourly maximum | N66: Monthly daily mean | O66: Monthly daily maximum
J67: A5 | K67: Jan
K68: Feb
K69: Mar
K70: Apr
K71: May
K72: Jun
K73: Jul
K74: Aug
K75: Sep
K76: Oct
K77: Nov
K78: Dec
K79: Annual | L79: =AVERAGE(L67:L78) ->  | M79: =MAX(M67:M78) -> 0 | N79: =AVERAGE(N67:N78) ->  | O79: =MAX(O67:O78) -> 0

Sheet CO 95% 10 min
A1: =+'Cover Page'!$B$29 -> Annual Performance Report 2023 | E1: =+'Cover Page'!$B$33 -> MVV Environment Baldovie Ltd
A3: Monitoring of Carbon Monoxide (10-minute avg) | E3: Whole Installation | H3: See Notes in Cell S3 | J3: =+A3 -> Monitoring of Carbon Monoxide (10-minute avg) | O3: Per Combustion Line | Q3: Notes: | S3: Notes:
S4: User to add logic to complete Whole installation, Table A5:H18. From the data in Per Combustion Line, Table K6:Q79, subject to No. of lines installed
A5: mg/Nm3 | B5: 10-minute Reference Periods | F5: Daily Reference Periods
A6: =+'Cover Page'!C39 -> 2023 | B6: 95%ile 10-min avg CO ELV | C6: 95%ile 10-min avg maximum | D6: Monthly CO 10-min avg mean | E6: 10-min avg maximum | F6: Daily CO ELV | G6: Monthly daily mean | H6: Highest daily maximum | K6: =+A6 -> 2023 | L6: mg/Nm3 | M6: 95%ile 10-min avg maximum | N6: Monthly CO 10-min avg mean | O6: 10-min avg maximum | P6: Monthly daily mean | Q6: Monthly daily maximum
A7: Jan | B7: 150 | C7: =MAX(M7,M22,M37) -> 106.5 | D7: =AVERAGE(N7,N22,N37) -> 14.63333333 | E7: =MAX(O7,O22,O37) -> 425.7 | F7: 50 | G7: =AVERAGE(P7,P22,P37) -> 14.83333333 | H7: =MAX(Q7,Q22,Q37) -> 38.5 | K7: A1 | L7: Jan | M7: 106.5 | N7: 19.3 | O7: 390.7 | P7: 20 | Q7: 38.5
A8: Feb | B8: =+B7 -> 150 | C8: =MAX(M8,M23,M38) -> 368.6 | D8: =AVERAGE(N8,N23,N38) -> 17.63333333 | E8: =MAX(O8,O23,O38) -> 4158.7 | F8: =+F7 -> 50 | G8: 17.7 | H8: 87.7 | L8: Feb | M8: 124.4 | N8: 21.4 | O8: 468.4 | P8: 21.4 | Q8: 33.5
A9: Mar | B9: =+B8 -> 150 | C9: 129.1 | D9: 19.46666667 | E9: 572.5 | F9: =+F8 -> 50 | G9: 20.73333333 | H9: 60.4 | L9: Mar | M9: 129.1 | N9: 24.3 | O9: 313.8 | P9: 27.1 | Q9: 60.4 | S9: Whole Installation table A5:H18:
A10: Apr | B10: 150 | C10: 144.4 | D10: 24.5 | E10: 552.6 | F10: 50 | G10: 24.86666667 | H10: 56.3 | L10: Apr | M10: 144.4 | N10: 31.1 | O10: 339.2 | P10: 32 | Q10: 56.3 | S10: Mean: for 10-min and daily periods use average of all operational combustion lines.
A11: May | B11: 150 | C11: 413.6 | D11: 23.9 | E11: 1389.3 | F11: 50 | G11: 23.46666667 | H11: 93.6 | L11: May | M11: 123.3 | N11: 24.4 | O11: 304.5 | P11: 24.3 | Q11: 39.8
A12: Jun | B12: 150 | C12: 3161.5 | D12: 29.36666667 | E12: 9298.2 | F12: 50 | G12: 33.96666667 | H12: 920.3 | L12: Jun | M12: 119.1 | N12: 22.9 | O12: 323.1 | P12: 23 | Q12: 34.9
A13: Jul | B13: 150 | C13: 129.9 | D13: 22.13333333 | E13: 1092.7 | F13: 50 | G13: 22.6 | H13: 73.6 | L13: Jul | M13: 123 | N13: 27.2 | O13: 394.5 | P13: 27.2 | Q13: 35.4 | S13: Maximum: for 10-min and daily periods use the highest of all operational combustion lines in any month.
A14: Aug | B14: 150 | C14: 146.2 | D14: 26.6 | E14: 27956.2 | F14: 50 | G14: 26.63333333 | H14: 237.6 | L14: Aug | M14: 146.2 | N14: 29.5 | O14: 393.5 | P14: 29.6 | Q14: 43.8
A15: Sep | B15: 150 | C15: 129.8 | D15: 22.06666667 | E15: 1040.5 | F15: 50 | G15: 25.6 | H15: 318.7 | L15: Sep | M15: 122.9 | N15: 23.7 | O15: 531.4 | P15: 23.8 | Q15: 39.6
A16: Oct | B16: 150 | C16: 146.5 | D16: 12.9 | E16: 443.5 | F16: 50 | G16: 13.4 | H16: 59.9 | L16: Oct | M16: 146.5 | N16: 15.4 | O16: 443.5 | P16: 17 | Q16: 59.9
A17: Nov | B17: 150 | C17: 129.2 | D17: 12.73333333 | E17: 1066.2 | F17: 50 | G17: 13.1 | H17: 60.9 | L17: Nov | M17: 129.2 | N17: 15 | O17: 538.9 | P17: 16 | Q17: 60.9
A18: Dec | B18: 150 | C18: 112.5 | D18: 14.36666667 | E18: 745.2 | F18: 50/30 | G18: 14.46666667 | H18: 33.3 | L18: Dec | M18: 112.5 | N18: 17.9 | O18: 286.9 | P18: 18.1 | Q18: 33.3
L19: Annual | M19: =AVERAGE(M7:M18) -> 127.2583333 | N19: =AVERAGE(N7:N18) -> 22.675 | O19: =MAX(O7:O18) -> 538.9 | P19: =AVERAGE(P7:P18) -> 23.29166667 | Q19: =MAX(Q7:Q18) -> 60.9
K21: =+A6 -> 2023 | L21: mg/Nm3 | M21: 95%ile 10-min avg maximum | N21: Monthly CO 10-min avg mean | O21: 10-min avg maximum | P21: Monthly daily mean | Q21: Monthly daily maximum
K22: A2 | L22: Jan | M22: 82.2 | N22: 15.9 | O22: 425.7 | P22: 15.9 | Q22: 23
L23: Feb | M23: 139.3 | N23: 18.2 | O23: 797.7 | P23: 17.9 | Q23: 34.2
L24: Mar | M24: 115.1 | N24: 23.3 | O24: 572.5 | P24: 24.3 | Q24: 55.4
L25: Apr | M25: 124.2 | N25: 30.3 | O25: 552.6 | P25: 30.6 | Q25: 48.7
L26: May | M26: 130.7 | N26: 27.9 | O26: 416.1 | P26: 27.9 | Q26: 45.6
L27: Jun | M27: 122.4 | N27: 27.8 | O27: 324.2 | P27: 28.2 | Q27: 40.7
L28: Jul | M28: 129.9 | N28: 30.4 | O28: 382.2 | P28: 31.8 | Q28: 73.6
L29: Aug | M29: 140 | N29: 33.2 | O29: 344.1 | P29: 32.9 | Q29: 45.2
L30: Sep | M30: 129.8 | N30: 31.3 | O30: 1040.5 | P30: 41.8 | Q30: 318.7
L31: Oct | M31: 47.9 | N31: 8.9 | O31: 317.1 | P31: 8.8 | Q31: 13.8
L32: Nov | M32: 70.9 | N32: 11 | O32: 508.2 | P32: 11.1 | Q32: 21
L33: Dec | M33: 64.6 | N33: 10.8 | O33: 277.6 | P33: 10.9 | Q33: 16.9
L34: Annual | M34: =AVERAGE(M22:M33) -> 108.0833333 | N34: =AVERAGE(N22:N33) -> 22.41666667 | O34: =MAX(O22:O33) -> 1040.5 | P34: =AVERAGE(P22:P33) -> 23.50833333 | Q34: =MAX(Q22:Q33) -> 318.7
K36: =+A6 -> 2023 | L36: mg/Nm3 | M36: 95%ile 10-min avg maximum | N36: Monthly CO 10-min avg mean | O36: 10-min avg maximum | P36: Monthly daily mean | Q36: Monthly daily maximum
K37: A3 | L37: Jan | M37: 22.5 | N37: 8.7 | O37: 126.2 | P37: 8.6 | Q37: 11.6
L38: Feb | M38: 368.6 | N38: 13.3 | O38: 4158.7 | P38: 13.8 | Q38: 87.7
L39: Mar | M39: 32.6 | N39: 10.8 | O39: 92.2 | P39: 10.8 | Q39: 14.3
L40: Apr | M40: 44.3 | N40: 12.1 | O40: 210.5 | P40: 12 | Q40: 21.7
L41: May | M41: 413.6 | N41: 19.4 | O41: 1389.3 | P41: 18.2 | Q41: 93.6
L42: Jun | M42: 3161.5 | N42: 37.4 | O42: 9298.2 | P42: 50.7 | Q42: 920.3
L43: Jul | M43: 24.4 | N43: 8.8 | O43: 1092.7 | P43: 8.8 | Q43: 17.8
L44: Aug | M44: 45.5 | N44: 17.1 | O44: 27956.2 | P44: 17.4 | Q44: 237.6
L45: Sep | M45: 35.8 | N45: 11.2 | O45: 160.5 | P45: 11.2 | Q45: 16.3
L46: Oct | M46: 76.8 | N46: 14.4 | O46: 259.7 | P46: 14.4 | Q46: 30.8
L47: Nov | M47: 47.4 | N47: 12.2 | O47: 1066.2 | P47: 12.2 | Q47: 20.7
A48: Comments : | L48: Dec | M48: 47.2 | N48: 14.4 | O48: 745.2 | P48: 14.4 | Q48: 21.6
A49: Environment Agency explanatory note: The 10-minute average ELV is based on the “95th percentile”. In this case this means that 95% of the 10 minute averages in the relevant 24-hour period (i.e. 137) must be below 150 mg/Nm3, and 5% (i.e. 7) are allowed to be any value above 150 mg/Nm3. Whilst we expect operators to minimise CO emissions at all times, it is perfectly acceptable for the value of the maximum 10-minute average to be above 150 mg/Nm3, provided the 95th percentile ELV has been met for that period. CO daily average emission limit was changed from 50 mg/m3 to 30 mg/Nm3 on the 3rd of December at 00:00 for Line 3 only. Compliance is met against the 97th %ile of the daily average over the calendar year for all three lines. Line 1 had 1 instance of an exceedance against the CO 95th %ile 10-minute average over 24 hours. Line 3 had 4 instances of an exceedance against the CO 95th %ile 10-minute average over 24 hours. | L49: Annual | M49: =AVERAGE(M37:M48) -> 360.0166667 | N49: =AVERAGE(N37:N48) -> 14.98333333 | O49: =MAX(O37:O48) -> 27956.2 | P49: =AVERAGE(P37:P48) -> 16.04166667 | Q49: =MAX(Q37:Q48) -> 920.3
K51: =+A6 -> 2023 | L51: mg/Nm3 | M51: 95%ile 10-min avg maximum | N51: Monthly CO 10-min avg mean | O51: 10-min avg maximum | P51: Monthly daily mean | Q51: Monthly daily maximum
K52: A4 | L52: Jan
L53: Feb
L54: Mar
L55: Apr
L56: May
L57: Jun
L58: Jul
L59: Aug
L60: Sep
L61: Oct
L62: Nov
L63: Dec
L64: Annual | M64: =AVERAGE(M52:M63) ->  | O64: =MAX(O52:O63) -> 0 | P64: =AVERAGE(P52:P63) ->  | Q64: =MAX(Q52:Q63) -> 0
K66: =+A6 -> 2023 | L66: mg/Nm3 | M66: 95%ile 10-min avg maximum | N66: Monthly CO 10-min avg mean | O66: 10-min avg maximum | P66: Monthly daily mean | Q66: Monthly daily maximum
K67: A5 | L67: Jan
L68: Feb
L69: Mar
L70: Apr
L71: May
L72: Jun
L73: Jul
L74: Aug
L75: Sep
L76: Oct
L77: Nov
L78: Dec
L79: Annual | M79: =AVERAGE(M67:M78) ->  | O79: =MAX(O67:O78) -> 0 | P79: =AVERAGE(P67:P78) ->  | Q79: =MAX(Q67:Q78) -> 0

Sheet NH3
A1: =+'Cover Page'!$B$29 -> Annual Performance Report 2023 | E1: =+'Cover Page'!$B$33 -> MVV Environment Baldovie Ltd
A3: Monitoring of Ammnonia emissions | D3: Whole Installation | J3: =+A3 -> Monitoring of Ammnonia emissions | N3: Per Combustion Line | Q3: Notes:
Q4: User to add logic to complete Whole installation, Table A5:G18. From the data in Per Combustion Line, Table J6:O79, subject to No. of lines installed
A5: mg/Nm3 | B5: 1/2 Hourly Reference Periods | E5: Daily Reference Periods
A6: =+'Cover Page'!C39 -> 2023 | B6: 1/2 hourly NH3 ELV | C6: Monthly 1/2 hourly mean | D6: Highest 1/2 hourly maximum | E6: Daily NH3 ELV | F6: Monthly daily mean | G6: Highest daily maximum | J6: =+A6 -> 2023 | K6: mg/Nm3 | L6: Monthly 1/2 hourly mean | M6: Monthly 1/2 hourly maximum | N6: Monthly daily mean | O6: Monthly daily maximum
A7: Jan | B7: - | C7: =AVERAGE(L7,L22,L37) -> 0.5666666667 | D7: =MAX(M7,M22,M37) -> 22.4 | E7: 10 | F7: =AVERAGE(N7,N22,N37) -> 0.5666666667 | G7: =MAX(O7,O22,O37) -> 4.2 | J7: A1 | K7: Jan | L7: 0.2 | M7: 12 | N7: 0.3 | O7: 4.2
A8: Feb | B8: =+B7 -> - | C8: =AVERAGE(L8,L23,L38) -> 0.6 | D8: =MAX(M8,M23,M38) -> 22.8 | E8: 10 | F8: =AVERAGE(N8,N23,N38) -> 0.7333333333 | G8: 10.4 | K8: Feb | L8: 0.3 | M8: 14.6 | N8: 0.4 | O8: 1.5
A9: Mar | B9: =+B8 -> - | C9: 0.5666666667 | D9: 22.6 | E9: 10 | F9: 0.6 | G9: 4.1 | K9: Mar | L9: 0.4 | M9: 8.1 | N9: 0.6 | O9: 4.1 | Q9: Whole Installation table A5:G18:
A10: Apr | B10: - | C10: 0.5666666667 | D10: 9.9 | E10: 10 | F10: 0.5666666667 | G10: 2.7 | K10: Apr | L10: 0.4 | M10: 6.3 | N10: 0.4 | O10: 2.7 | Q10: Mean: for 1/2 hourly and daily periods calculate mean of values across all operational combustion lines for the month
A11: May | B11: - | C11: 0.7333333333 | D11: 6.9 | E11: 10 | F11: 0.7 | G11: 2.9 | K11: May | L11: 0.2 | M11: 1.3 | N11: 0.2 | O11: 0.6
A12: Jun | B12: - | C12: 1.166666667 | D12: 20.9 | E12: 10 | F12: 1.133333333 | G12: 6.1 | K12: Jun | L12: 0.5 | M12: 3.1 | N12: 0.4 | O12: 1.5
A13: Jul | B13: - | C13: 1.133333333 | D13: 16.2 | E13: 10 | F13: 1.066666667 | G13: 3.5 | K13: Jul | L13: 0.7 | M13: 4.5 | N13: 0.7 | O13: 1.4 | Q13: Maximum: for 1/2 hourly and daily periods use the highest value across all operational combustion lines for the month
A14: Aug | B14: - | C14: 1.533333333 | D14: 26.8 | E14: 10 | F14: 1.5 | G14: 5.9 | K14: Aug | L14: 0.9 | M14: 26.8 | N14: 0.9 | O14: 2.9
A15: Sep | B15: - | C15: 0.9333333333 | D15: 13.4 | E15: 10 | F15: 0.9333333333 | G15: 4.5 | K15: Sep | L15: 0.8 | M15: 13.4 | N15: 0.8 | O15: 1.9
A16: Oct | B16: - | C16: 0.5666666667 | D16: 16 | E16: 10 | F16: 0.5666666667 | G16: 4.9 | K16: Oct | L16: 0.5 | M16: 16 | N16: 0.5 | O16: 2.8
A17: Nov | B17: - | C17: 0.4 | D17: 14.4 | E17: 10 | F17: 0.4 | G17: 2.7 | K17: Nov | L17: 0.2 | M17: 9.7 | N17: 0.3 | O17: 2.7
A18: Dec | B18: - | C18: 0.6 | D18: 6.8 | E18: 10 | F18: 0.5666666667 | G18: 1.7 | K18: Dec | L18: 0.4 | M18: 6.8 | N18: 0.4 | O18: 1.2
K19: Annual | L19: =AVERAGE(L7:L18) -> 0.4583333333 | M19: =MAX(M7:M18) -> 26.8 | N19: =AVERAGE(N7:N18) -> 0.4916666667 | O19: =MAX(O7:O18) -> 4.2
J21: =+A6 -> 2023 | K21: mg/Nm3 | L21: Monthly 1/2 hourly mean | M21: Monthly 1/2 hourly maximum | N21: Monthly daily mean | O21: Monthly daily maximum
J22: A2 | K22: Jan | L22: 1 | M22: 22.4 | N22: 0.9 | O22: 1.9
K23: Feb | L23: 1 | M23: 22.8 | N23: 1.3 | O23: 10.4
K24: Mar | L24: 0.6 | M24: 22.6 | N24: 0.6 | O24: 3
K25: Apr | L25: 0.7 | M25: 9.9 | N25: 0.7 | O25: 2.1
K26: May | L26: 1.2 | M26: 6.9 | N26: 1.2 | O26: 2.9
K27: Jun | L27: 0.8 | M27: 11.9 | N27: 0.8 | O27: 2.2
K28: Jul | L28: 2.1 | M28: 16.2 | N28: 2 | O28: 3.5
K29: Aug | L29: 2.7 | M29: 18.3 | N29: 2.7 | O29: 5.9
K30: Sep | L30: 1.3 | M30: 13 | N30: 1.3 | O30: 4.5
K31: Oct | L31: 0.1 | M31: 3.2 | N31: 0.1 | O31: 1.9
K32: Nov | L32: 0.2 | M32: 14.4 | N32: 0.1 | O32: 0.8
K33: Dec | L33: 0.2 | M33: 4.8 | N33: 0.1 | O33: 0.6
K34: Annual | L34: =AVERAGE(L22:L33) -> 0.9916666667 | M34: =MAX(M22:M33) -> 22.8 | N34: =AVERAGE(N22:N33) -> 0.9833333333 | O34: =MAX(O22:O33) -> 10.4
J36: =+A6 -> 2023 | K36: mg/Nm3 | L36: Monthly 1/2 hourly mean | M36: Monthly 1/2 hourly maximum | N36: Monthly daily mean | O36: Monthly daily maximum
J37: A3 | K37: Jan | L37: 0.5 | M37: 3.4 | N37: 0.5 | O37: 0.9
K38: Feb | L38: 0.5 | M38: 3 | N38: 0.5 | O38: 1.1
K39: Mar | L39: 0.7 | M39: 3.3 | N39: 0.6 | O39: 1.2
K40: Apr | L40: 0.6 | M40: 4.6 | N40: 0.6 | O40: 1
K41: May | L41: 0.8 | M41: 5.5 | N41: 0.7 | O41: 1.9
K42: Jun | L42: 2.2 | M42: 20.9 | N42: 2.2 | O42: 6.1
K43: Jul | L43: 0.6 | M43: 5.3 | N43: 0.5 | O43: 2
K44: Aug | L44: 1 | M44: 6.1 | N44: 0.9 | O44: 2.6
K45: Sep | L45: 0.7 | M45: 2.4 | N45: 0.7 | O45: 1.1
K46: Oct | L46: 1.1 | M46: 12.7 | N46: 1.1 | O46: 4.9
K47: Nov | L47: 0.8 | M47: 2.4 | N47: 0.8 | O47: 1.3
A48: Comments : | K48: Dec | L48: 1.2 | M48: 4.4 | N48: 1.2 | O48: 1.7
A49: Line 2 had 1 instance of an NH3 daily average exceedance. | K49: Annual | L49: =AVERAGE(L37:L48) -> 0.8916666667 | M49: =MAX(M37:M48) -> 20.9 | N49: =AVERAGE(N37:N48) -> 0.8583333333 | O49: =MAX(O37:O48) -> 6.1
J51: =+A6 -> 2023 | K51: mg/Nm3 | L51: Monthly 1/2 hourly mean | M51: Monthly 1/2 hourly maximum | N51: Monthly daily mean | O51: Monthly daily maximum
J52: A4 | K52: Jan
K53: Feb
K54: Mar
K55: Apr
K56: May
K57: Jun
K58: Jul
K59: Aug
K60: Sep
K61: Oct
K62: Nov
K63: Dec
K64: Annual | L64: =AVERAGE(L52:L63) ->  | M64: =MAX(M52:M63) -> 0 | N64: =AVERAGE(N52:N63) ->  | O64: =MAX(O52:O63) -> 0
J66: =+A6 -> 2023 | K66: mg/Nm3 | L66: Monthly 1/2 hourly mean | M66: Monthly 1/2 hourly maximum | N66: Monthly daily mean | O66: Monthly daily maximum
J67: A5 | K67: Jan
K68: Feb
K69: Mar
K70: Apr
K71: May
K72: Jun
K73: Jul
K74: Aug
K75: Sep
K76: Oct
K77: Nov
K78: Dec
K79: Annual | L79: =AVERAGE(L67:L78) ->  | M79: =MAX(M67:M78) -> 0 | N79: =AVERAGE(N67:N78) ->  | O79: =MAX(O67:O78) -> 0

Sheet N2O
A1: =+'Cover Page'!$B$29 -> Annual Performance Report 2023 | E1: =+'Cover Page'!$B$33 -> MVV Environment Baldovie Ltd
A3: Monitoring of Nitrous Oxide emissions | D3: Whole Installation | J3: =+A3 -> Monitoring of Nitrous Oxide emissions | N3: Per Combustion Line | Q3: Notes:
Q4: User to add logic to complete Whole installation, Table A5:G18. From the data in Per Combustion Line, Table J6:O79, subject to No. of lines installed
A5: mg/Nm3 | B5: 1/2 Hourly Reference Periods | E5: Daily Reference Periods
A6: =+'Cover Page'!C39 -> 2023 | B6: 1/2 hourly N2O ELV | C6: Monthly 1/2 hourly mean | D6: Highest 1/2 hourly maximum | E6: Daily N2O ELV | F6: Monthly daily mean | G6: Highest daily maximum | J6: =+A6 -> 2023 | K6: mg/Nm3 | L6: Monthly 1/2 hourly mean | M6: Monthly 1/2 hourly maximum | N6: Monthly daily mean | O6: Monthly daily maximum
A7: Jan | B7: - | C7: =AVERAGE(L7,L22,L37) -> 4.333333333 | D7: =MAX(M7,M22,M37) -> 68 | E7: - | F7: =AVERAGE(N7,N22,N37) -> 4.4 | G7: =MAX(O7,O22,O37) -> 11.7 | J7: A1 | K7: Jan | L7: 2.3 | M7: 43.1 | N7: 2.5 | O7: 9.3
A8: Feb | B8: =+B7 -> - | C8: =AVERAGE(L8,L23,L38) -> 4.633333333 | D8: =MAX(M8,M23,M38) -> 92.4 | E8: - | F8: =AVERAGE(N8,N23,N38) -> 4.7 | G8: 11.8 | K8: Feb | L8: 2.2 | M8: 49.8 | N8: 2.3 | O8: 5.3
A9: Mar | B9: =+B8 -> - | C9: 4.2 | D9: 26.1 | E9: - | F9: 4.566666667 | G9: 14 | K9: Mar | L9: 2.4 | M9: 26.1 | N9: 2.9 | O9: 8.9 | Q9: Whole Installation table A5:G18:
A10: Apr | B10: - | C10: 4.066666667 | D10: 55.1 | E10: - | F10: 4.166666667 | G10: 11.6 | K10: Apr | L10: 2 | M10: 32.4 | N10: 2.3 | O10: 10.2 | Q10: Mean: for 1/2 hourly and daily periods calculate mean of values across all operational combustion lines for the month
A11: May | B11: - | C11: 4.033333333 | D11: 46.3 | E11: - | F11: 3.966666667 | G11: 11.1 | K11: May | L11: 1.5 | M11: 11.6 | N11: 1.5 | O11: 2.4
A12: Jun | B12: - | C12: 6.5 | D12: 1685 | E12: - | F12: 6.9 | G12: 97.9 | K12: Jun | L12: 1.6 | M12: 10.4 | N12: 1.6 | O12: 2.6
A13: Jul | B13: - | C13: 4.366666667 | D13: 560.6 | E13: - | F13: 4.333333333 | G13: 20.1 | K13: Jul | L13: 2.3 | M13: 19.5 | N13: 2.3 | O13: 4.6 | Q13: Maximum: for 1/2 hourly and daily periods use the highest value across all operational combustion lines for the month
A14: Aug | B14: - | C14: 3.966666667 | D14: 18.1 | E14: - | F14: 3.933333333 | G14: 10.8 | K14: Aug | L14: 1.8 | M14: 17.2 | N14: 1.8 | O14: 3.1
A15: Sep | B15: - | C15: 3.2 | D15: 14.8 | E15: - | F15: 3.233333333 | G15: 9.7 | K15: Sep | L15: 1.1 | M15: 14.4 | N15: 1.1 | O15: 2.8
A16: Oct | B16: - | C16: 2.866666667 | D16: 37.4 | E16: - | F16: 2.933333333 | G16: 9.9 | K16: Oct | L16: 1.5 | M16: 21.4 | N16: 1.5 | O16: 2.7
A17: Nov | B17: - | C17: 3.033333333 | D17: 81.2 | E17: - | F17: 3.1 | G17: 9.2 | K17: Nov | L17: 1.6 | M17: 81.2 | N17: 1.8 | O17: 9.1
A18: Dec | B18: - | C18: 3.366666667 | D18: 84.8 | E18: - | F18: 3.533333333 | G18: 10 | K18: Dec | L18: 1.9 | M18: 84.8 | N18: 2.5 | O18: 9.8
K19: Annual | L19: =AVERAGE(L7:L18) -> 1.85 | M19: =MAX(M7:M18) -> 84.8 | N19: =AVERAGE(N7:N18) -> 2.008333333 | O19: =MAX(O7:O18) -> 10.2
J21: =+A6 -> 2023 | K21: mg/Nm3 | L21: Monthly 1/2 hourly mean | M21: Monthly 1/2 hourly maximum | N21: Monthly daily mean | O21: Monthly daily maximum
J22: A2 | K22: Jan | L22: 0.9 | M22: 68 | N22: 0.9 | O22: 2.2
K23: Feb | L23: 1 | M23: 24.4 | N23: 1.2 | O23: 7.8
K24: Mar | L24: 0.9 | M24: 14 | N24: 1.5 | O24: 14
K25: Apr | L25: 0.8 | M25: 9.2 | N25: 0.8 | O25: 1.6
K26: May | L26: 1 | M26: 20.1 | N26: 1 | O26: 2.6
K27: Jun | L27: 1 | M27: 9.7 | N27: 1 | O27: 1.8
K28: Jul | L28: 1.6 | M28: 14.1 | N28: 1.5 | O28: 3.8
K29: Aug | L29: 1.2 | M29: 15.1 | N29: 1.2 | O29: 3.4
K30: Sep | L30: 1.3 | M30: 10.8 | N30: 1.4 | O30: 6.3
K31: Oct | L31: 0.3 | M31: 10.8 | N31: 0.5 | O31: 4.1
K32: Nov | L32: 0.5 | M32: 15.6 | N32: 0.5 | O32: 1.1
K33: Dec | L33: 0.6 | M33: 11.4 | N33: 0.6 | O33: 1.6
K34: Annual | L34: =AVERAGE(L22:L33) -> 0.925 | M34: =MAX(M22:M33) -> 68 | N34: =AVERAGE(N22:N33) -> 1.008333333 | O34: =MAX(O22:O33) -> 14
J36: =+A6 -> 2023 | K36: mg/Nm3 | L36: Monthly 1/2 hourly mean | M36: Monthly 1/2 hourly maximum | N36: Monthly daily mean | O36: Monthly daily maximum
J37: A3 | K37: Jan | L37: 9.8 | M37: 15.9 | N37: 9.8 | O37: 11.7
K38: Feb | L38: 10.7 | M38: 92.4 | N38: 10.6 | O38: 11.8
K39: Mar | L39: 9.3 | M39: 17 | N39: 9.3 | O39: 11.6
K40: Apr | L40: 9.4 | M40: 55.1 | N40: 9.4 | O40: 11.6
K41: May | L41: 9.6 | M41: 46.3 | N41: 9.4 | O41: 11.1
K42: Jun | L42: 16.9 | M42: 1685 | N42: 18.1 | O42: 97.9
K43: Jul | L43: 9.2 | M43: 560.6 | N43: 9.2 | O43: 20.1
K44: Aug | L44: 8.9 | M44: 18.1 | N44: 8.8 | O44: 10.8
K45: Sep | L45: 7.2 | M45: 14.8 | N45: 7.2 | O45: 9.7
K46: Oct | L46: 6.8 | M46: 37.4 | N46: 6.8 | O46: 9.9
K47: Nov | L47: 7 | M47: 14.3 | N47: 7 | O47: 9.2
A48: Comments : | K48: Dec | L48: 7.6 | M48: 14.3 | N48: 7.5 | O48: 10
A49: As indicated ELV value in the table above means that no Nitrous Oxide (N2O) limit is set in the permit. | K49: Annual | L49: =AVERAGE(L37:L48) -> 9.366666667 | M49: =MAX(M37:M48) -> 1685 | N49: =AVERAGE(N37:N48) -> 9.425 | O49: =MAX(O37:O48) -> 97.9
J51: =+A6 -> 2023 | K51: mg/Nm3 | L51: Monthly 1/2 hourly mean | M51: Monthly 1/2 hourly maximum | N51: Monthly daily mean | O51: Monthly daily maximum
J52: A4 | K52: Jan
K53: Feb
K54: Mar
K55: Apr
K56: May
K57: Jun
K58: Jul
K59: Aug
K60: Sep
K61: Oct
K62: Nov
K63: Dec
K64: Annual | L64: =AVERAGE(L52:L63) ->  | M64: =MAX(M52:M63) -> 0 | N64: =AVERAGE(N52:N63) ->  | O64: =MAX(O52:O63) -> 0
J66: =+A6 -> 2023 | K66: mg/Nm3 | L66: Monthly 1/2 hourly mean | M66: Monthly 1/2 hourly maximum | N66: Monthly daily mean | O66: Monthly daily maximum
J67: A5 | K67: Jan
K68: Feb
K69: Mar
K70: Apr
K71: May
K72: Jun
K73: Jul
K74: Aug
K75: Sep
K76: Oct
K77: Nov
K78: Dec
K79: Annual | L79: =AVERAGE(L67:L78) ->  | M79: =MAX(M67:M78) -> 0 | N79: =AVERAGE(N67:N78) ->  | O79: =MAX(O67:O78) -> 0
